Workbook

Sheet Tabulka
B2: Zvýrazněno: | C2: 1. místo | D2: 2. místo | E2: 3. místo | F2: Počet účastníků: | H2: =30-COUNTIF(B6:B35," ") -> 20 | I2: Aktualizace: | L2: 2017-10-01T00:00:46 | O2: =F36 -> 5429.5 | V2: =DATE(2017,9,30)-DATE(YEAR(L2),MONTH(L2),DAY(L2)) -> -1
B3: CYKLO | C3: získané body | F3: najeto | G3: projeté | I3: 1 | J3: Rokytník | L3: =I3+1 -> 2 | M3: Stachelberg | O3: =L3+1 -> 3 | P3: Severka | R3: =O3+1 -> 4 | S3: Pekelník | U3: =R3+1 -> 5 | V3: Zvičina | X3: =U3+1 -> 6 | Y3: Rýchory | AA3: =X3+1 -> 7 | AB3: Barunka | AD3: =AA3+1 -> 8 | AE3: Černá hora | AG3: =AD3+1 -> 9 | AH3: Luční Bouda | AJ3: =AG3+1 -> 10 | AK3: Pomezky | AM3: =AJ3+1 -> 11 | AN3: Mravenčí | AP3: =AM3+1 -> 12 | AQ3: Žacléř | AS3: =AP3+1 -> 13 | AT3: Popílkáč | AV3: =AS3+1 -> 14 | AW3: Ovčák | AY3: =AV3+1 -> 15 | AZ3: Žaltman | BB3: =AY3+1 -> 16 | BC3: Voletiny | BE3: =BB3+1 -> 17 | BF3: Libeč | BH3: =BE3+1 -> 18 | BI3: Bernartice | BK3: =BH3+1 -> 19 | BL3: Lhota | BN3: =BK3+1 -> 20 | BO3: Hajnice | BQ3: =BN3+1 -> 21 | BR3: Ostaš | BT3: =BQ3+1 -> 22 | BU3: Webrovka | BW3: =BT3+1 -> 23 | BX3: Špičák | BZ3: =BW3+1 -> 24 | CA3: Barchoviny | CC3: =BZ3+1 -> 25 | CD3: Vraní Hory | CF3: =CC3+1 -> 26 | CG3: Ratibořice
B4: tour | F4: km | G4: trasy | I4: 11.3 | J4: osobní | K4: =CEILING(I4*0.05+MID(I38,2,3)*0.002,0.1) -> 1.2 | L4: 7.1 | M4: osobní | N4: =CEILING(L4*0.05+MID(L38,2,3)*0.002,0.1) -> 1 | O4: 15.4 | P4: osobní | Q4: =CEILING(O4*0.05+MID(O38,2,3)*0.002,0.1) -> 1 | R4: 22.5 | S4: osobní | T4: =CEILING(R4*0.05+MID(R38,2,3)*0.002,0.1) -> 2.2 | U4: 36.2 | V4: osobní | W4: =CEILING(U4*0.05+MID(U38,2,3)*0.002,0.1) -> 3.3 | X4: 9.4 | Y4: osobní | Z4: =CEILING(X4*0.05+MID(X38,2,3)*0.002,0.1) -> 1.7 | AA4: 17.1 | AB4: osobní | AC4: =CEILING(AA4*0.05+MID(AA38,2,3)*0.002,0.1) -> 1.5 | AD4: 18.2 | AE4: osobní | AF4: =CEILING(AD4*0.05+MID(AD38,2,3)*0.002,0.1) -> 2.7 | AG4: 26 | AH4: osobní | AI4: =CEILING(AG4*0.05+MID(AG38,2,4)*0.002,0.1) -> 3.7 | AJ4: 24.1 | AK4: osobní | AL4: =CEILING(AJ4*0.05+MID(AJ38,2,3)*0.002,0.1) -> 3.2 | AM4: 47.7 | AN4: osobní | AO4: =CEILING(AM4*0.05+MID(AM38,2,4)*0.002,0.1) -> 4.4 | AP4: 32.3 | AQ4: osobní | AR4: =CEILING(AP4*0.05+MID(AP38,2,3)*0.002,0.1) -> 3 | AS4: 15.2 | AT4: osobní | AU4: =CEILING(AS4*0.05+MID(AS38,2,3)*0.002,0.1) -> 1.7 | AV4: 18.3 | AW4: osobní | AX4: =CEILING(AV4*0.05+MID(AV38,2,3)*0.002,0.1) -> 1.6 | AY4: 17.7 | AZ4: osobní | BA4: =CEILING(AY4*0.05+MID(AY38,2,3)*0.002,0.1) -> 2.3 | BB4: 16.3 | BC4: osobní | BD4: =CEILING(BB4*0.05+MID(BB38,2,3)*0.002,0.1) -> 1.9 | BE4: 27.3 | BF4: osobní | BG4: =CEILING(BE4*0.05+MID(BE38,2,3)*0.002,0.1) -> 3 | BH4: 33.8 | BI4: osobní | BJ4: =CEILING(BH4*0.05+MID(BH38,2,3)*0.002,0.1) -> 3 | BK4: 15.7 | BL4: osobní | BM4: =CEILING(BK4*0.05+MID(BK38,2,3)*0.002,0.1) -> 1.9 | BN4: 39.5 | BO4: osobní | BP4: =CEILING(BN4*0.05+MID(BN38,2,3)*0.002,0.1) -> 2.9 | BQ4: 32.2 | BR4: osobní | BS4: =CEILING(BQ4*0.05+MID(BQ38,2,3)*0.002,0.1) -> 3 | BT4: 11.6 | BU4: osobní | BV4: =CEILING(BT4*0.05+MID(BT38,2,3)*0.002,0.1) -> 1.2 | BW4: 18.5 | BX4: osobní | BY4: =CEILING(BW4*0.05+MID(BW38,2,3)*0.002,0.1) -> 2.6 | BZ4: 40.6 | CA4: osobní | CB4: =CEILING(BZ4*0.05+MID(BZ38,2,4)*0.002,0.1) -> 3.6 | CC4: 52.7 | CD4: osobní | CE4: =CEILING(CC4*0.05+MID(CC38,2,4)*0.002,0.1) -> 4.9 | CF4: 20.8 | CG4: osobní | CH4: =CEILING(CF4*0.05+MID(CF38,2,3)*0.002,0.1) -> 1.5 | CJ4: osobní
B5: 2017 | C5: celkem | D5: koefic. | E5: rekordy | F5: celkem | G5: aktivita | H5: jednot. | I5: jízdy | J5: rekordy | K5: body | L5: jízdy | M5: rekordy | N5: body | O5: jízdy | P5: rekordy | Q5: body | R5: jízdy | S5: rekordy | T5: body | U5: jízdy | V5: rekordy | W5: body | X5: jízdy | Y5: rekordy | Z5: body | AA5: jízdy | AB5: rekordy | AC5: body | AD5: jízdy | AE5: rekordy | AF5: body | AG5: jízdy | AH5: rekordy | AI5: body | AJ5: jízdy | AK5: rekordy | AL5: body | AM5: jízdy | AN5: rekordy | AO5: body | AP5: jízdy | AQ5: rekordy | AR5: body | AS5: jízdy | AT5: rekordy | AU5: body | AV5: jízdy | AW5: rekordy | AX5: body | AY5: jízdy | AZ5: rekordy | BA5: body | BB5: jízdy | BC5: rekordy | BD5: body | BE5: jízdy | BF5: rekordy | BG5: body | BH5: jízdy | BI5: rekordy | BJ5: body | BK5: jízdy | BL5: rekordy | BM5: body | BN5: jízdy | BO5: rekordy | BP5: body | BQ5: jízdy | BR5: rekordy | BS5: body | BT5: jízdy | BU5: rekordy | BV5: body | BW5: jízdy | BX5: rekordy | BY5: body | BZ5: jízdy | CA5: rekordy | CB5: body | CC5: jízdy | CD5: rekordy | CE5: body | CF5: jízdy | CG5: rekordy | CH5: body | CI5: jízdy | CJ5: rekordy | CK5: body
A6: 1 | B6: Havelka Daniel | C6: =IF(B6=" ","- ",D6+E6) -> 220.8 | D6: =IF(B6=" ","- ",SUM(I6*$K$4,L6*$N$4,O6*$Q$4,R6*$T$4,U6*$W$4,X6*$Z$4,AA6*$AC$4,AD6*$AF$4,AG6*$AI$4,AJ6*$AL$4,AM6*$AO$4,AP6*$AR$4,AS6*$AU$4,AV6*$AX$4,AY6*$BA$4,BB6*$BD$4,BE6*$BG$4,BH6*$BJ$4,BK6*$BM$4,BN6*$BP$4,BQ6*$BS$4,BT6*$BV$4,BW6*$BY$4,BZ6*$CB$4,CC6*$CE$4,CF6*$CH$4,CI6*$CK$4)) -> 106.8 | E6: =IF(B6=" ","- ",SUM(K6,N6,Q6,T6,W6,Z6,AC6,AF6,AI6,AL6,AO6,AR6,AU6,AX6,BA6,BD6,BG6,BJ6,BM6,BP6,BS6,BV6,BY6,CB6,CE6,CH6,CK6)) -> 114 | F6: =IF(B6=" ","- ",SUM(I6*$I$4,L6*$L$4,O6*$O$4,R6*$R$4,U6*$U$4,X6*$X$4,AA6*$AA$4,AD6*$AD$4,AG6*$AG$4,AJ6*$AJ$4,AM6*$AM$4,AP6*$AP$4,AS6*$AS$4,AV6*$AV$4,AY6*$AY$4,BB6*$BB$4,BE6*$BE$4,BH6*$BH$4,BK6*$BK$4,BN6*$BN$4,BQ6*$BQ$4,BT6*$BT$4,BW6*$BW$4,BZ6*$BZ$4,CC6*$CC$4,CF6*$CF$4,CI6*$CI$4)) -> 1092.4 | G6: =IF(B6=" ","- ",SUM(I6,L6,O6,R6,U6,X6,AA6,AD6,AG6,AJ6,AM6,AP6,AS6,AV6,AY6,BB6,BE6,BH6,BK6,BN6,BQ6,BT6,BW6,BZ6,CC6,CF6,CI6)) -> 51 | H6: =IF(B6=" ","- ",COUNT(I6,L6,O6,R6,U6,X6,AA6,AD6,AG6,AJ6,AM6,AP6,AS6,AV6,AY6,BB6,BE6,BH6,BK6,BN6,BQ6,BT6,BW6,BZ6,CC6,CF6,CI6)) -> 26 | I6: 2 | J6: 00:31:38 | K6: =IF(J6="","-",IF(RANK(J6,J$6:J$35,1)<11,(11-RANK(J6,J$6:J$35,1))*0.5,0)) -> 4.5 | L6: 4 | M6: 00:22:44 | N6: =IF(M6="","-",IF(RANK(M6,M$6:M$35,1)<11,(11-RANK(M6,M$6:M$35,1))*0.5,0)) -> 5 | O6: 5 | P6: 00:28:35 | Q6: =IF(P6="","-",IF(RANK(P6,P$6:P$35,1)<11,(11-RANK(P6,P$6:P$35,1))*0.5,0)) -> 4 | R6: 1 | S6: 01:17:45 | T6: =IF(S6="","-",IF(RANK(S6,S$6:S$35,1)<11,(11-RANK(S6,S$6:S$35,1))*0.5,0)) -> 4 | U6: 1 | V6: 01:37:40 | W6: =IF(V6="","-",IF(RANK(V6,V$6:V$35,1)<11,(11-RANK(V6,V$6:V$35,1))*0.5,0)) -> 4 | X6: 1 | Y6: 00:53:20 | Z6: =IF(Y6="","-",IF(RANK(Y6,Y$6:Y$35,1)<11,(11-RANK(Y6,Y$6:Y$35,1))*0.5,0)) -> 4 | AA6: 3 | AB6: 00:43:00 | AC6: =IF(AB6="","-",IF(RANK(AB6,AB$6:AB$35,1)<11,(11-RANK(AB6,AB$6:AB$35,1))*0.5,0)) -> 4.5 | AD6: 1 | AE6: 01:13:39 | AF6: =IF(AE6="","-",IF(RANK(AE6,AE$6:AE$35,1)<11,(11-RANK(AE6,AE$6:AE$35,1))*0.5,0)) -> 4.5 | AG6: 1 | AH6: 01:59:00 | AI6: =IF(AH6="","-",IF(RANK(AH6,AH$6:AH$35,1)<11,(11-RANK(AH6,AH$6:AH$35,1))*0.5,0)) -> 3.5 | AJ6: 1 | AK6: 01:17:22 | AL6: =IF(AK6="","-",IF(RANK(AK6,AK$6:AK$35,1)<11,(11-RANK(AK6,AK$6:AK$35,1))*0.5,0)) -> 5 | AM6: 1 | AN6: 02:21:15 | AO6: =IF(AN6="","-",IF(RANK(AN6,AN$6:AN$35,1)<11,(11-RANK(AN6,AN$6:AN$35,1))*0.5,0)) -> 4.5 | AP6: 1 | AQ6: 01:30:38 | AR6: =IF(AQ6="","-",IF(RANK(AQ6,AQ$6:AQ$35,1)<11,(11-RANK(AQ6,AQ$6:AQ$35,1))*0.5,0)) -> 4 | AS6: 2 | AT6: 00:42:42 | AU6: =IF(AT6="","-",IF(RANK(AT6,AT$6:AT$35,1)<11,(11-RANK(AT6,AT$6:AT$35,1))*0.5,0)) -> 5 | AV6: 2 | AW6: 00:43:34 | AX6: =IF(AW6="","-",IF(RANK(AW6,AW$6:AW$35,1)<11,(11-RANK(AW6,AW$6:AW$35,1))*0.5,0)) -> 4.5 | AY6: 1 | AZ6: 01:04:30 | BA6: =IF(AZ6="","-",IF(RANK(AZ6,AZ$6:AZ$35,1)<11,(11-RANK(AZ6,AZ$6:AZ$35,1))*0.5,0)) -> 4 | BB6: 4 | BC6: 00:52:18 | BD6: =IF(BC6="","-",IF(RANK(BC6,BC$6:BC$35,1)<11,(11-RANK(BC6,BC$6:BC$35,1))*0.5,0)) -> 5 | BE6: 2 | BF6: 01:13:50 | BG6: =IF(BF6="","-",IF(RANK(BF6,BF$6:BF$35,1)<11,(11-RANK(BF6,BF$6:BF$35,1))*0.5,0)) -> 5 | BH6: 4 | BI6: 01:16:54 | BJ6: =IF(BI6="","-",IF(RANK(BI6,BI$6:BI$35,1)<11,(11-RANK(BI6,BI$6:BI$35,1))*0.5,0)) -> 5 | BK6: 1 | BL6: 00:54:45 | BM6: =IF(BL6="","-",IF(RANK(BL6,BL$6:BL$35,1)<11,(11-RANK(BL6,BL$6:BL$35,1))*0.5,0)) -> 5 | BN6: 3 | BO6: 01:29:40 | BP6: =IF(BO6="","-",IF(RANK(BO6,BO$6:BO$35,1)<11,(11-RANK(BO6,BO$6:BO$35,1))*0.5,0)) -> 3.5 | BQ6: 1 | BR6: 01:19:20 | BS6: =IF(BR6="","-",IF(RANK(BR6,BR$6:BR$35,1)<11,(11-RANK(BR6,BR$6:BR$35,1))*0.5,0)) -> 4 | BT6: 5 | BU6: 00:30:18 | BV6: =IF(BU6="","-",IF(RANK(BU6,BU$6:BU$35,1)<11,(11-RANK(BU6,BU$6:BU$35,1))*0.5,0)) -> 5 | BW6: 1 | BX6: 01:12:50 | BY6: =IF(BX6="","-",IF(RANK(BX6,BX$6:BX$35,1)<11,(11-RANK(BX6,BX$6:BX$35,1))*0.5,0)) -> 4 | BZ6: 1 | CA6: 02:06:00 | CB6: =IF(CA6="","-",IF(RANK(CA6,CA$6:CA$35,1)<11,(11-RANK(CA6,CA$6:CA$35,1))*0.5,0)) -> 4 | CC6: 1 | CD6: 02:23:23 | CE6: =IF(CD6="","-",IF(RANK(CD6,CD$6:CD$35,1)<11,(11-RANK(CD6,CD$6:CD$35,1))*0.5,0)) -> 4.5 | CF6: 1 | CG6: 00:46:56 | CH6: =IF(CG6="","-",IF(RANK(CG6,CG$6:CG$35,1)<11,(11-RANK(CG6,CG$6:CG$35,1))*0.5,0)) -> 4 | CK6: =IF(CJ6="","-",IF(RANK(CJ6,CJ$6:CJ$35,1)<11,(11-RANK(CJ6,CJ$6:CJ$35,1))*0.5,0)) -> -
A7: 2 | B7: Horák Jakub | C7: =IF(B7=" ","- ",D7+E7) -> 209.4 | D7: =IF(B7=" ","- ",SUM(I7*$K$4,L7*$N$4,O7*$Q$4,R7*$T$4,U7*$W$4,X7*$Z$4,AA7*$AC$4,AD7*$AF$4,AG7*$AI$4,AJ7*$AL$4,AM7*$AO$4,AP7*$AR$4,AS7*$AU$4,AV7*$AX$4,AY7*$BA$4,BB7*$BD$4,BE7*$BG$4,BH7*$BJ$4,BK7*$BM$4,BN7*$BP$4,BQ7*$BS$4,BT7*$BV$4,BW7*$BY$4,BZ7*$CB$4,CC7*$CE$4,CF7*$CH$4,CI7*$CK$4)) -> 93.4 | E7: =IF(B7=" ","- ",SUM(K7,N7,Q7,T7,W7,Z7,AC7,AF7,AI7,AL7,AO7,AR7,AU7,AX7,BA7,BD7,BG7,BJ7,BM7,BP7,BS7,BV7,BY7,CB7,CE7,CH7,CK7)) -> 116 | F7: =IF(B7=" ","- ",SUM(I7*$I$4,L7*$L$4,O7*$O$4,R7*$R$4,U7*$U$4,X7*$X$4,AA7*$AA$4,AD7*$AD$4,AG7*$AG$4,AJ7*$AJ$4,AM7*$AM$4,AP7*$AP$4,AS7*$AS$4,AV7*$AV$4,AY7*$AY$4,BB7*$BB$4,BE7*$BE$4,BH7*$BH$4,BK7*$BK$4,BN7*$BN$4,BQ7*$BQ$4,BT7*$BT$4,BW7*$BW$4,BZ7*$BZ$4,CC7*$CC$4,CF7*$CF$4,CI7*$CI$4)) -> 907.1 | G7: =IF(B7=" ","- ",SUM(I7,L7,O7,R7,U7,X7,AA7,AD7,AG7,AJ7,AM7,AP7,AS7,AV7,AY7,BB7,BE7,BH7,BK7,BN7,BQ7,BT7,BW7,BZ7,CC7,CF7,CI7)) -> 40 | H7: =IF(B7=" ","- ",COUNT(I7,L7,O7,R7,U7,X7,AA7,AD7,AG7,AJ7,AM7,AP7,AS7,AV7,AY7,BB7,BE7,BH7,BK7,BN7,BQ7,BT7,BW7,BZ7,CC7,CF7,CI7)) -> 26 | I7: 3 | J7: 00:31:45 | K7: =IF(J7="","-",IF(RANK(J7,J$6:J$35,1)<11,(11-RANK(J7,J$6:J$35,1))*0.5,0)) -> 4 | L7: 1 | M7: 00:23:19 | N7: =IF(M7="","-",IF(RANK(M7,M$6:M$35,1)<11,(11-RANK(M7,M$6:M$35,1))*0.5,0)) -> 4 | O7: 2 | P7: 00:28:23 | Q7: =IF(P7="","-",IF(RANK(P7,P$6:P$35,1)<11,(11-RANK(P7,P$6:P$35,1))*0.5,0)) -> 4.5 | R7: 1 | S7: 01:07:10 | T7: =IF(S7="","-",IF(RANK(S7,S$6:S$35,1)<11,(11-RANK(S7,S$6:S$35,1))*0.5,0)) -> 4.5 | U7: 1 | V7: 01:34:17 | W7: =IF(V7="","-",IF(RANK(V7,V$6:V$35,1)<11,(11-RANK(V7,V$6:V$35,1))*0.5,0)) -> 4.5 | X7: 2 | Y7: 00:42:31 | Z7: =IF(Y7="","-",IF(RANK(Y7,Y$6:Y$35,1)<11,(11-RANK(Y7,Y$6:Y$35,1))*0.5,0)) -> 5 | AA7: 1 | AB7: 00:44:03 | AC7: =IF(AB7="","-",IF(RANK(AB7,AB$6:AB$35,1)<11,(11-RANK(AB7,AB$6:AB$35,1))*0.5,0)) -> 4 | AD7: 2 | AE7: 01:13:27 | AF7: =IF(AE7="","-",IF(RANK(AE7,AE$6:AE$35,1)<11,(11-RANK(AE7,AE$6:AE$35,1))*0.5,0)) -> 5 | AG7: 1 | AH7: 01:49:54 | AI7: =IF(AH7="","-",IF(RANK(AH7,AH$6:AH$35,1)<11,(11-RANK(AH7,AH$6:AH$35,1))*0.5,0)) -> 4.5 | AJ7: 1 | AK7: 01:21:04 | AL7: =IF(AK7="","-",IF(RANK(AK7,AK$6:AK$35,1)<11,(11-RANK(AK7,AK$6:AK$35,1))*0.5,0)) -> 4.5 | AM7: 1 | AN7: 02:19:31 | AO7: =IF(AN7="","-",IF(RANK(AN7,AN$6:AN$35,1)<11,(11-RANK(AN7,AN$6:AN$35,1))*0.5,0)) -> 5 | AP7: 1 | AQ7: 01:26:34 | AR7: =IF(AQ7="","-",IF(RANK(AQ7,AQ$6:AQ$35,1)<11,(11-RANK(AQ7,AQ$6:AQ$35,1))*0.5,0)) -> 4.5 | AS7: 2 | AT7: 00:45:30 | AU7: =IF(AT7="","-",IF(RANK(AT7,AT$6:AT$35,1)<11,(11-RANK(AT7,AT$6:AT$35,1))*0.5,0)) -> 4 | AV7: 1 | AW7: 00:46:20 | AX7: =IF(AW7="","-",IF(RANK(AW7,AW$6:AW$35,1)<11,(11-RANK(AW7,AW$6:AW$35,1))*0.5,0)) -> 4 | AY7: 2 | AZ7: 00:57:17 | BA7: =IF(AZ7="","-",IF(RANK(AZ7,AZ$6:AZ$35,1)<11,(11-RANK(AZ7,AZ$6:AZ$35,1))*0.5,0)) -> 4.5 | BB7: 3 | BC7: 00:52:54 | BD7: =IF(BC7="","-",IF(RANK(BC7,BC$6:BC$35,1)<11,(11-RANK(BC7,BC$6:BC$35,1))*0.5,0)) -> 4.5 | BE7: 2 | BF7: 01:18:13 | BG7: =IF(BF7="","-",IF(RANK(BF7,BF$6:BF$35,1)<11,(11-RANK(BF7,BF$6:BF$35,1))*0.5,0)) -> 4.5 | BH7: 2 | BI7: 01:20:11 | BJ7: =IF(BI7="","-",IF(RANK(BI7,BI$6:BI$35,1)<11,(11-RANK(BI7,BI$6:BI$35,1))*0.5,0)) -> 4.5 | BK7: 2 | BL7: 01:00:15 | BM7: =IF(BL7="","-",IF(RANK(BL7,BL$6:BL$35,1)<11,(11-RANK(BL7,BL$6:BL$35,1))*0.5,0)) -> 4.5 | BN7: 2 | BO7: 01:24:55 | BP7: =IF(BO7="","-",IF(RANK(BO7,BO$6:BO$35,1)<11,(11-RANK(BO7,BO$6:BO$35,1))*0.5,0)) -> 4.5 | BQ7: 2 | BR7: 01:17:08 | BS7: =IF(BR7="","-",IF(RANK(BR7,BR$6:BR$35,1)<11,(11-RANK(BR7,BR$6:BR$35,1))*0.5,0)) -> 4.5 | BT7: 1 | BU7: 00:33:36 | BV7: =IF(BU7="","-",IF(RANK(BU7,BU$6:BU$35,1)<11,(11-RANK(BU7,BU$6:BU$35,1))*0.5,0)) -> 4 | BW7: 1 | BX7: 01:07:22 | BY7: =IF(BX7="","-",IF(RANK(BX7,BX$6:BX$35,1)<11,(11-RANK(BX7,BX$6:BX$35,1))*0.5,0)) -> 4.5 | BZ7: 1 | CA7: 01:55:38 | CB7: =IF(CA7="","-",IF(RANK(CA7,CA$6:CA$35,1)<11,(11-RANK(CA7,CA$6:CA$35,1))*0.5,0)) -> 4.5 | CC7: 1 | CD7: 02:22:30 | CE7: =IF(CD7="","-",IF(RANK(CD7,CD$6:CD$35,1)<11,(11-RANK(CD7,CD$6:CD$35,1))*0.5,0)) -> 5 | CF7: 1 | CG7: 00:46:39 | CH7: =IF(CG7="","-",IF(RANK(CG7,CG$6:CG$35,1)<11,(11-RANK(CG7,CG$6:CG$35,1))*0.5,0)) -> 4.5 | CK7: =IF(CJ7="","-",IF(RANK(CJ7,CJ$6:CJ$35,1)<11,(11-RANK(CJ7,CJ$6:CJ$35,1))*0.5,0)) -> -
A8: 3 | B8: Mikula Aleš | C8: =IF(B8=" ","- ",D8+E8) -> 198.1 | D8: =IF(B8=" ","- ",SUM(I8*$K$4,L8*$N$4,O8*$Q$4,R8*$T$4,U8*$W$4,X8*$Z$4,AA8*$AC$4,AD8*$AF$4,AG8*$AI$4,AJ8*$AL$4,AM8*$AO$4,AP8*$AR$4,AS8*$AU$4,AV8*$AX$4,AY8*$BA$4,BB8*$BD$4,BE8*$BG$4,BH8*$BJ$4,BK8*$BM$4,BN8*$BP$4,BQ8*$BS$4,BT8*$BV$4,BW8*$BY$4,BZ8*$CB$4,CC8*$CE$4,CF8*$CH$4,CI8*$CK$4)) -> 77.1 | E8: =IF(B8=" ","- ",SUM(K8,N8,Q8,T8,W8,Z8,AC8,AF8,AI8,AL8,AO8,AR8,AU8,AX8,BA8,BD8,BG8,BJ8,BM8,BP8,BS8,BV8,BY8,CB8,CE8,CH8,CK8)) -> 121 | F8: =IF(B8=" ","- ",SUM(I8*$I$4,L8*$L$4,O8*$O$4,R8*$R$4,U8*$U$4,X8*$X$4,AA8*$AA$4,AD8*$AD$4,AG8*$AG$4,AJ8*$AJ$4,AM8*$AM$4,AP8*$AP$4,AS8*$AS$4,AV8*$AV$4,AY8*$AY$4,BB8*$BB$4,BE8*$BE$4,BH8*$BH$4,BK8*$BK$4,BN8*$BN$4,BQ8*$BQ$4,BT8*$BT$4,BW8*$BW$4,BZ8*$BZ$4,CC8*$CC$4,CF8*$CF$4,CI8*$CI$4)) -> 756.7 | G8: =IF(B8=" ","- ",SUM(I8,L8,O8,R8,U8,X8,AA8,AD8,AG8,AJ8,AM8,AP8,AS8,AV8,AY8,BB8,BE8,BH8,BK8,BN8,BQ8,BT8,BW8,BZ8,CC8,CF8,CI8)) -> 34 | H8: =IF(B8=" ","- ",COUNT(I8,L8,O8,R8,U8,X8,AA8,AD8,AG8,AJ8,AM8,AP8,AS8,AV8,AY8,BB8,BE8,BH8,BK8,BN8,BQ8,BT8,BW8,BZ8,CC8,CF8,CI8)) -> 26 | I8: 1 | J8: 00:29:45 | K8: =IF(J8="","-",IF(RANK(J8,J$6:J$35,1)<11,(11-RANK(J8,J$6:J$35,1))*0.5,0)) -> 5 | L8: 3 | M8: 00:23:08 | N8: =IF(M8="","-",IF(RANK(M8,M$6:M$35,1)<11,(11-RANK(M8,M$6:M$35,1))*0.5,0)) -> 4.5 | O8: 1 | P8: 00:28:05 | Q8: =IF(P8="","-",IF(RANK(P8,P$6:P$35,1)<11,(11-RANK(P8,P$6:P$35,1))*0.5,0)) -> 5 | R8: 1 | S8: 01:01:15 | T8: =IF(S8="","-",IF(RANK(S8,S$6:S$35,1)<11,(11-RANK(S8,S$6:S$35,1))*0.5,0)) -> 5 | U8: 1 | V8: 01:32:05 | W8: =IF(V8="","-",IF(RANK(V8,V$6:V$35,1)<11,(11-RANK(V8,V$6:V$35,1))*0.5,0)) -> 5 | X8: 1 | Y8: 00:43:45 | Z8: =IF(Y8="","-",IF(RANK(Y8,Y$6:Y$35,1)<11,(11-RANK(Y8,Y$6:Y$35,1))*0.5,0)) -> 4.5 | AA8: 4 | AB8: 00:42:20 | AC8: =IF(AB8="","-",IF(RANK(AB8,AB$6:AB$35,1)<11,(11-RANK(AB8,AB$6:AB$35,1))*0.5,0)) -> 5 | AD8: 1 | AE8: 01:16:05 | AF8: =IF(AE8="","-",IF(RANK(AE8,AE$6:AE$35,1)<11,(11-RANK(AE8,AE$6:AE$35,1))*0.5,0)) -> 4 | AG8: 1 | AH8: 01:43:30 | AI8: =IF(AH8="","-",IF(RANK(AH8,AH$6:AH$35,1)<11,(11-RANK(AH8,AH$6:AH$35,1))*0.5,0)) -> 5 | AJ8: 1 | AK8: 01:21:04 | AL8: =IF(AK8="","-",IF(RANK(AK8,AK$6:AK$35,1)<11,(11-RANK(AK8,AK$6:AK$35,1))*0.5,0)) -> 4.5 | AM8: 1 | AN8: 02:21:15 | AO8: =IF(AN8="","-",IF(RANK(AN8,AN$6:AN$35,1)<11,(11-RANK(AN8,AN$6:AN$35,1))*0.5,0)) -> 4.5 | AP8: 1 | AQ8: 01:25:35 | AR8: =IF(AQ8="","-",IF(RANK(AQ8,AQ$6:AQ$35,1)<11,(11-RANK(AQ8,AQ$6:AQ$35,1))*0.5,0)) -> 5 | AS8: 2 | AT8: 00:43:55 | AU8: =IF(AT8="","-",IF(RANK(AT8,AT$6:AT$35,1)<11,(11-RANK(AT8,AT$6:AT$35,1))*0.5,0)) -> 4.5 | AV8: 1 | AW8: 00:42:14 | AX8: =IF(AW8="","-",IF(RANK(AW8,AW$6:AW$35,1)<11,(11-RANK(AW8,AW$6:AW$35,1))*0.5,0)) -> 5 | AY8: 1 | AZ8: 00:55:55 | BA8: =IF(AZ8="","-",IF(RANK(AZ8,AZ$6:AZ$35,1)<11,(11-RANK(AZ8,AZ$6:AZ$35,1))*0.5,0)) -> 5 | BB8: 2 | BC8: 00:54:50 | BD8: =IF(BC8="","-",IF(RANK(BC8,BC$6:BC$35,1)<11,(11-RANK(BC8,BC$6:BC$35,1))*0.5,0)) -> 4 | BE8: 1 | BF8: 01:22:30 | BG8: =IF(BF8="","-",IF(RANK(BF8,BF$6:BF$35,1)<11,(11-RANK(BF8,BF$6:BF$35,1))*0.5,0)) -> 4 | BH8: 1 | BI8: 01:24:40 | BJ8: =IF(BI8="","-",IF(RANK(BI8,BI$6:BI$35,1)<11,(11-RANK(BI8,BI$6:BI$35,1))*0.5,0)) -> 4 | BK8: 1 | BL8: 01:01:00 | BM8: =IF(BL8="","-",IF(RANK(BL8,BL$6:BL$35,1)<11,(11-RANK(BL8,BL$6:BL$35,1))*0.5,0)) -> 4 | BN8: 1 | BO8: 01:24:00 | BP8: =IF(BO8="","-",IF(RANK(BO8,BO$6:BO$35,1)<11,(11-RANK(BO8,BO$6:BO$35,1))*0.5,0)) -> 5 | BQ8: 2 | BR8: 01:16:07 | BS8: =IF(BR8="","-",IF(RANK(BR8,BR$6:BR$35,1)<11,(11-RANK(BR8,BR$6:BR$35,1))*0.5,0)) -> 5 | BT8: 1 | BU8: 00:32:40 | BV8: =IF(BU8="","-",IF(RANK(BU8,BU$6:BU$35,1)<11,(11-RANK(BU8,BU$6:BU$35,1))*0.5,0)) -> 4.5 | BW8: 1 | BX8: 01:05:55 | BY8: =IF(BX8="","-",IF(RANK(BX8,BX$6:BX$35,1)<11,(11-RANK(BX8,BX$6:BX$35,1))*0.5,0)) -> 5 | BZ8: 1 | CA8: 01:53:00 | CB8: =IF(CA8="","-",IF(RANK(CA8,CA$6:CA$35,1)<11,(11-RANK(CA8,CA$6:CA$35,1))*0.5,0)) -> 5 | CC8: 1 | CD8: 02:29:20 | CE8: =IF(CD8="","-",IF(RANK(CD8,CD$6:CD$35,1)<11,(11-RANK(CD8,CD$6:CD$35,1))*0.5,0)) -> 4 | CF8: 1 | CG8: 00:44:35 | CH8: =IF(CG8="","-",IF(RANK(CG8,CG$6:CG$35,1)<11,(11-RANK(CG8,CG$6:CG$35,1))*0.5,0)) -> 5 | CK8: =IF(CJ8="","-",IF(RANK(CJ8,CJ$6:CJ$35,1)<11,(11-RANK(CJ8,CJ$6:CJ$35,1))*0.5,0)) -> -
A9: 4 | B9: Vávra Martin | C9: =IF(B9=" ","- ",D9+E9) -> 134.5 | D9: =IF(B9=" ","- ",SUM(I9*$K$4,L9*$N$4,O9*$Q$4,R9*$T$4,U9*$W$4,X9*$Z$4,AA9*$AC$4,AD9*$AF$4,AG9*$AI$4,AJ9*$AL$4,AM9*$AO$4,AP9*$AR$4,AS9*$AU$4,AV9*$AX$4,AY9*$BA$4,BB9*$BD$4,BE9*$BG$4,BH9*$BJ$4,BK9*$BM$4,BN9*$BP$4,BQ9*$BS$4,BT9*$BV$4,BW9*$BY$4,BZ9*$CB$4,CC9*$CE$4,CF9*$CH$4,CI9*$CK$4)) -> 64 | E9: =IF(B9=" ","- ",SUM(K9,N9,Q9,T9,W9,Z9,AC9,AF9,AI9,AL9,AO9,AR9,AU9,AX9,BA9,BD9,BG9,BJ9,BM9,BP9,BS9,BV9,BY9,CB9,CE9,CH9,CK9)) -> 70.5 | F9: =IF(B9=" ","- ",SUM(I9*$I$4,L9*$L$4,O9*$O$4,R9*$R$4,U9*$U$4,X9*$X$4,AA9*$AA$4,AD9*$AD$4,AG9*$AG$4,AJ9*$AJ$4,AM9*$AM$4,AP9*$AP$4,AS9*$AS$4,AV9*$AV$4,AY9*$AY$4,BB9*$BB$4,BE9*$BE$4,BH9*$BH$4,BK9*$BK$4,BN9*$BN$4,BQ9*$BQ$4,BT9*$BT$4,BW9*$BW$4,BZ9*$BZ$4,CC9*$CC$4,CF9*$CF$4,CI9*$CI$4)) -> 627.5 | G9: =IF(B9=" ","- ",SUM(I9,L9,O9,R9,U9,X9,AA9,AD9,AG9,AJ9,AM9,AP9,AS9,AV9,AY9,BB9,BE9,BH9,BK9,BN9,BQ9,BT9,BW9,BZ9,CC9,CF9,CI9)) -> 26 | H9: =IF(B9=" ","- ",COUNT(I9,L9,O9,R9,U9,X9,AA9,AD9,AG9,AJ9,AM9,AP9,AS9,AV9,AY9,BB9,BE9,BH9,BK9,BN9,BQ9,BT9,BW9,BZ9,CC9,CF9,CI9)) -> 26 | I9: 1 | J9: 00:49:00 | K9: =IF(J9="","-",IF(RANK(J9,J$6:J$35,1)<11,(11-RANK(J9,J$6:J$35,1))*0.5,0)) -> 1.5 | L9: 1 | M9: 00:39:00 | N9: =IF(M9="","-",IF(RANK(M9,M$6:M$35,1)<11,(11-RANK(M9,M$6:M$35,1))*0.5,0)) -> 1 | O9: 1 | P9: 00:45:00 | Q9: =IF(P9="","-",IF(RANK(P9,P$6:P$35,1)<11,(11-RANK(P9,P$6:P$35,1))*0.5,0)) -> 0 | R9: 1 | S9: 01:36:00 | T9: =IF(S9="","-",IF(RANK(S9,S$6:S$35,1)<11,(11-RANK(S9,S$6:S$35,1))*0.5,0)) -> 3.5 | U9: 1 | V9: 02:37:00 | W9: =IF(V9="","-",IF(RANK(V9,V$6:V$35,1)<11,(11-RANK(V9,V$6:V$35,1))*0.5,0)) -> 2 | X9: 1 | Y9: 01:07:00 | Z9: =IF(Y9="","-",IF(RANK(Y9,Y$6:Y$35,1)<11,(11-RANK(Y9,Y$6:Y$35,1))*0.5,0)) -> 3.5 | AA9: 1 | AB9: 01:10:00 | AC9: =IF(AB9="","-",IF(RANK(AB9,AB$6:AB$35,1)<11,(11-RANK(AB9,AB$6:AB$35,1))*0.5,0)) -> 2.5 | AD9: 1 | AE9: 02:03:00 | AF9: =IF(AE9="","-",IF(RANK(AE9,AE$6:AE$35,1)<11,(11-RANK(AE9,AE$6:AE$35,1))*0.5,0)) -> 3.5 | AG9: 1 | AH9: 02:49:00 | AI9: =IF(AH9="","-",IF(RANK(AH9,AH$6:AH$35,1)<11,(11-RANK(AH9,AH$6:AH$35,1))*0.5,0)) -> 3 | AJ9: 1 | AK9: 02:10:00 | AL9: =IF(AK9="","-",IF(RANK(AK9,AK$6:AK$35,1)<11,(11-RANK(AK9,AK$6:AK$35,1))*0.5,0)) -> 3.5 | AM9: 1 | AN9: 04:37:00 | AO9: =IF(AN9="","-",IF(RANK(AN9,AN$6:AN$35,1)<11,(11-RANK(AN9,AN$6:AN$35,1))*0.5,0)) -> 3 | AP9: 1 | AQ9: 02:14:00 | AR9: =IF(AQ9="","-",IF(RANK(AQ9,AQ$6:AQ$35,1)<11,(11-RANK(AQ9,AQ$6:AQ$35,1))*0.5,0)) -> 2.5 | AS9: 1 | AT9: 00:59:00 | AU9: =IF(AT9="","-",IF(RANK(AT9,AT$6:AT$35,1)<11,(11-RANK(AT9,AT$6:AT$35,1))*0.5,0)) -> 3 | AV9: 1 | AW9: 01:02:00 | AX9: =IF(AW9="","-",IF(RANK(AW9,AW$6:AW$35,1)<11,(11-RANK(AW9,AW$6:AW$35,1))*0.5,0)) -> 3 | AY9: 1 | AZ9: 01:29:00 | BA9: =IF(AZ9="","-",IF(RANK(AZ9,AZ$6:AZ$35,1)<11,(11-RANK(AZ9,AZ$6:AZ$35,1))*0.5,0)) -> 3 | BB9: 1 | BC9: 01:20:00 | BD9: =IF(BC9="","-",IF(RANK(BC9,BC$6:BC$35,1)<11,(11-RANK(BC9,BC$6:BC$35,1))*0.5,0)) -> 3.5 | BE9: 1 | BF9: 02:05:00 | BG9: =IF(BF9="","-",IF(RANK(BF9,BF$6:BF$35,1)<11,(11-RANK(BF9,BF$6:BF$35,1))*0.5,0)) -> 3.5 | BH9: 1 | BI9: 02:13:00 | BJ9: =IF(BI9="","-",IF(RANK(BI9,BI$6:BI$35,1)<11,(11-RANK(BI9,BI$6:BI$35,1))*0.5,0)) -> 2.5 | BK9: 1 | BL9: 01:40:00 | BM9: =IF(BL9="","-",IF(RANK(BL9,BL$6:BL$35,1)<11,(11-RANK(BL9,BL$6:BL$35,1))*0.5,0)) -> 3 | BN9: 1 | BO9: 01:54:00 | BP9: =IF(BO9="","-",IF(RANK(BO9,BO$6:BO$35,1)<11,(11-RANK(BO9,BO$6:BO$35,1))*0.5,0)) -> 2 | BQ9: 1 | BR9: 02:06:00 | BS9: =IF(BR9="","-",IF(RANK(BR9,BR$6:BR$35,1)<11,(11-RANK(BR9,BR$6:BR$35,1))*0.5,0)) -> 3.5 | BT9: 1 | BU9: 00:52:00 | BV9: =IF(BU9="","-",IF(RANK(BU9,BU$6:BU$35,1)<11,(11-RANK(BU9,BU$6:BU$35,1))*0.5,0)) -> 2.5 | BW9: 1 | BX9: 01:39:00 | BY9: =IF(BX9="","-",IF(RANK(BX9,BX$6:BX$35,1)<11,(11-RANK(BX9,BX$6:BX$35,1))*0.5,0)) -> 3.5 | BZ9: 1 | CA9: 02:39:00 | CB9: =IF(CA9="","-",IF(RANK(CA9,CA$6:CA$35,1)<11,(11-RANK(CA9,CA$6:CA$35,1))*0.5,0)) -> 2 | CC9: 1 | CD9: 03:52:00 | CE9: =IF(CD9="","-",IF(RANK(CD9,CD$6:CD$35,1)<11,(11-RANK(CD9,CD$6:CD$35,1))*0.5,0)) -> 3.5 | CF9: 1 | CG9: 01:43:00 | CH9: =IF(CG9="","-",IF(RANK(CG9,CG$6:CG$35,1)<11,(11-RANK(CG9,CG$6:CG$35,1))*0.5,0)) -> 2.5 | CK9: =IF(CJ9="","-",IF(RANK(CJ9,CJ$6:CJ$35,1)<11,(11-RANK(CJ9,CJ$6:CJ$35,1))*0.5,0)) -> -
A10: 5 | B10: Rykr Martin | C10: =IF(B10=" ","- ",D10+E10) -> 94.3 | D10: =IF(B10=" ","- ",SUM(I10*$K$4,L10*$N$4,O10*$Q$4,R10*$T$4,U10*$W$4,X10*$Z$4,AA10*$AC$4,AD10*$AF$4,AG10*$AI$4,AJ10*$AL$4,AM10*$AO$4,AP10*$AR$4,AS10*$AU$4,AV10*$AX$4,AY10*$BA$4,BB10*$BD$4,BE10*$BG$4,BH10*$BJ$4,BK10*$BM$4,BN10*$BP$4,BQ10*$BS$4,BT10*$BV$4,BW10*$BY$4,BZ10*$CB$4,CC10*$CE$4,CF10*$CH$4,CI10*$CK$4)) -> 54.3 | E10: =IF(B10=" ","- ",SUM(K10,N10,Q10,T10,W10,Z10,AC10,AF10,AI10,AL10,AO10,AR10,AU10,AX10,BA10,BD10,BG10,BJ10,BM10,BP10,BS10,BV10,BY10,CB10,CE10,CH10,CK10)) -> 40 | F10: =IF(B10=" ","- ",SUM(I10*$I$4,L10*$L$4,O10*$O$4,R10*$R$4,U10*$U$4,X10*$X$4,AA10*$AA$4,AD10*$AD$4,AG10*$AG$4,AJ10*$AJ$4,AM10*$AM$4,AP10*$AP$4,AS10*$AS$4,AV10*$AV$4,AY10*$AY$4,BB10*$BB$4,BE10*$BE$4,BH10*$BH$4,BK10*$BK$4,BN10*$BN$4,BQ10*$BQ$4,BT10*$BT$4,BW10*$BW$4,BZ10*$BZ$4,CC10*$CC$4,CF10*$CF$4,CI10*$CI$4)) -> 621.4 | G10: =IF(B10=" ","- ",SUM(I10,L10,O10,R10,U10,X10,AA10,AD10,AG10,AJ10,AM10,AP10,AS10,AV10,AY10,BB10,BE10,BH10,BK10,BN10,BQ10,BT10,BW10,BZ10,CC10,CF10,CI10)) -> 30 | H10: =IF(B10=" ","- ",COUNT(I10,L10,O10,R10,U10,X10,AA10,AD10,AG10,AJ10,AM10,AP10,AS10,AV10,AY10,BB10,BE10,BH10,BK10,BN10,BQ10,BT10,BW10,BZ10,CC10,CF10,CI10)) -> 12 | I10: 2 | J10: 00:39:19 | K10: =IF(J10="","-",IF(RANK(J10,J$6:J$35,1)<11,(11-RANK(J10,J$6:J$35,1))*0.5,0)) -> 3 | L10: 1 | M10: 00:30:52 | N10: =IF(M10="","-",IF(RANK(M10,M$6:M$35,1)<11,(11-RANK(M10,M$6:M$35,1))*0.5,0)) -> 3 | O10: 2 | P10: 00:31:21 | Q10: =IF(P10="","-",IF(RANK(P10,P$6:P$35,1)<11,(11-RANK(P10,P$6:P$35,1))*0.5,0)) -> 2.5 | T10: =IF(S10="","-",IF(RANK(S10,S$6:S$35,1)<11,(11-RANK(S10,S$6:S$35,1))*0.5,0)) -> - | U10: 1 | V10: 01:48:52 | W10: =IF(V10="","-",IF(RANK(V10,V$6:V$35,1)<11,(11-RANK(V10,V$6:V$35,1))*0.5,0)) -> 3 | Z10: =IF(Y10="","-",IF(RANK(Y10,Y$6:Y$35,1)<11,(11-RANK(Y10,Y$6:Y$35,1))*0.5,0)) -> - | AA10: 14 | AB10: 00:47:04 | AC10: =IF(AB10="","-",IF(RANK(AB10,AB$6:AB$35,1)<11,(11-RANK(AB10,AB$6:AB$35,1))*0.5,0)) -> 3.5 | AF10: =IF(AE10="","-",IF(RANK(AE10,AE$6:AE$35,1)<11,(11-RANK(AE10,AE$6:AE$35,1))*0.5,0)) -> - | AI10: =IF(AH10="","-",IF(RANK(AH10,AH$6:AH$35,1)<11,(11-RANK(AH10,AH$6:AH$35,1))*0.5,0)) -> - | AL10: =IF(AK10="","-",IF(RANK(AK10,AK$6:AK$35,1)<11,(11-RANK(AK10,AK$6:AK$35,1))*0.5,0)) -> - | AO10: =IF(AN10="","-",IF(RANK(AN10,AN$6:AN$35,1)<11,(11-RANK(AN10,AN$6:AN$35,1))*0.5,0)) -> - | AP10: 1 | AQ10: 01:42:24 | AR10: =IF(AQ10="","-",IF(RANK(AQ10,AQ$6:AQ$35,1)<11,(11-RANK(AQ10,AQ$6:AQ$35,1))*0.5,0)) -> 3.5 | AS10: 1 | AT10: 00:54:48 | AU10: =IF(AT10="","-",IF(RANK(AT10,AT$6:AT$35,1)<11,(11-RANK(AT10,AT$6:AT$35,1))*0.5,0)) -> 3.5 | AV10: 1 | AW10: 00:49:47 | AX10: =IF(AW10="","-",IF(RANK(AW10,AW$6:AW$35,1)<11,(11-RANK(AW10,AW$6:AW$35,1))*0.5,0)) -> 3.5 | AY10: 1 | AZ10: 01:10:45 | BA10: =IF(AZ10="","-",IF(RANK(AZ10,AZ$6:AZ$35,1)<11,(11-RANK(AZ10,AZ$6:AZ$35,1))*0.5,0)) -> 3.5 | BD10: =IF(BC10="","-",IF(RANK(BC10,BC$6:BC$35,1)<11,(11-RANK(BC10,BC$6:BC$35,1))*0.5,0)) -> - | BG10: =IF(BF10="","-",IF(RANK(BF10,BF$6:BF$35,1)<11,(11-RANK(BF10,BF$6:BF$35,1))*0.5,0)) -> - | BJ10: =IF(BI10="","-",IF(RANK(BI10,BI$6:BI$35,1)<11,(11-RANK(BI10,BI$6:BI$35,1))*0.5,0)) -> - | BM10: =IF(BL10="","-",IF(RANK(BL10,BL$6:BL$35,1)<11,(11-RANK(BL10,BL$6:BL$35,1))*0.5,0)) -> - | BN10: 2 | BO10: 01:27:00 | BP10: =IF(BO10="","-",IF(RANK(BO10,BO$6:BO$35,1)<11,(11-RANK(BO10,BO$6:BO$35,1))*0.5,0)) -> 4 | BS10: =IF(BR10="","-",IF(RANK(BR10,BR$6:BR$35,1)<11,(11-RANK(BR10,BR$6:BR$35,1))*0.5,0)) -> - | BV10: =IF(BU10="","-",IF(RANK(BU10,BU$6:BU$35,1)<11,(11-RANK(BU10,BU$6:BU$35,1))*0.5,0)) -> - | BY10: =IF(BX10="","-",IF(RANK(BX10,BX$6:BX$35,1)<11,(11-RANK(BX10,BX$6:BX$35,1))*0.5,0)) -> - | BZ10: 2 | CA10: 02:11:25 | CB10: =IF(CA10="","-",IF(RANK(CA10,CA$6:CA$35,1)<11,(11-RANK(CA10,CA$6:CA$35,1))*0.5,0)) -> 3.5 | CE10: =IF(CD10="","-",IF(RANK(CD10,CD$6:CD$35,1)<11,(11-RANK(CD10,CD$6:CD$35,1))*0.5,0)) -> - | CF10: 2 | CG10: 00:50:39 | CH10: =IF(CG10="","-",IF(RANK(CG10,CG$6:CG$35,1)<11,(11-RANK(CG10,CG$6:CG$35,1))*0.5,0)) -> 3.5 | CK10: =IF(CJ10="","-",IF(RANK(CJ10,CJ$6:CJ$35,1)<11,(11-RANK(CJ10,CJ$6:CJ$35,1))*0.5,0)) -> -
A11: 6 | B11: Slavík Jan | C11: =IF(B11=" ","- ",D11+E11) -> 66 | D11: =IF(B11=" ","- ",SUM(I11*$K$4,L11*$N$4,O11*$Q$4,R11*$T$4,U11*$W$4,X11*$Z$4,AA11*$AC$4,AD11*$AF$4,AG11*$AI$4,AJ11*$AL$4,AM11*$AO$4,AP11*$AR$4,AS11*$AU$4,AV11*$AX$4,AY11*$BA$4,BB11*$BD$4,BE11*$BG$4,BH11*$BJ$4,BK11*$BM$4,BN11*$BP$4,BQ11*$BS$4,BT11*$BV$4,BW11*$BY$4,BZ11*$CB$4,CC11*$CE$4,CF11*$CH$4,CI11*$CK$4)) -> 38 | E11: =IF(B11=" ","- ",SUM(K11,N11,Q11,T11,W11,Z11,AC11,AF11,AI11,AL11,AO11,AR11,AU11,AX11,BA11,BD11,BG11,BJ11,BM11,BP11,BS11,BV11,BY11,CB11,CE11,CH11,CK11)) -> 28 | F11: =IF(B11=" ","- ",SUM(I11*$I$4,L11*$L$4,O11*$O$4,R11*$R$4,U11*$U$4,X11*$X$4,AA11*$AA$4,AD11*$AD$4,AG11*$AG$4,AJ11*$AJ$4,AM11*$AM$4,AP11*$AP$4,AS11*$AS$4,AV11*$AV$4,AY11*$AY$4,BB11*$BB$4,BE11*$BE$4,BH11*$BH$4,BK11*$BK$4,BN11*$BN$4,BQ11*$BQ$4,BT11*$BT$4,BW11*$BW$4,BZ11*$BZ$4,CC11*$CC$4,CF11*$CF$4,CI11*$CI$4)) -> 407.8 | G11: =IF(B11=" ","- ",SUM(I11,L11,O11,R11,U11,X11,AA11,AD11,AG11,AJ11,AM11,AP11,AS11,AV11,AY11,BB11,BE11,BH11,BK11,BN11,BQ11,BT11,BW11,BZ11,CC11,CF11,CI11)) -> 23 | H11: =IF(B11=" ","- ",COUNT(I11,L11,O11,R11,U11,X11,AA11,AD11,AG11,AJ11,AM11,AP11,AS11,AV11,AY11,BB11,BE11,BH11,BK11,BN11,BQ11,BT11,BW11,BZ11,CC11,CF11,CI11)) -> 12 | I11: 5 | J11: 00:46:16 | K11: =IF(J11="","-",IF(RANK(J11,J$6:J$35,1)<11,(11-RANK(J11,J$6:J$35,1))*0.5,0)) -> 2.5 | L11: 2 | M11: 00:36:58 | N11: =IF(M11="","-",IF(RANK(M11,M$6:M$35,1)<11,(11-RANK(M11,M$6:M$35,1))*0.5,0)) -> 1.5 | O11: 5 | P11: 00:40:00 | Q11: =IF(P11="","-",IF(RANK(P11,P$6:P$35,1)<11,(11-RANK(P11,P$6:P$35,1))*0.5,0)) -> 0.5 | T11: =IF(S11="","-",IF(RANK(S11,S$6:S$35,1)<11,(11-RANK(S11,S$6:S$35,1))*0.5,0)) -> - | U11: 1 | V11: 02:24:15 | W11: =IF(V11="","-",IF(RANK(V11,V$6:V$35,1)<11,(11-RANK(V11,V$6:V$35,1))*0.5,0)) -> 2.5 | Z11: =IF(Y11="","-",IF(RANK(Y11,Y$6:Y$35,1)<11,(11-RANK(Y11,Y$6:Y$35,1))*0.5,0)) -> - | AC11: =IF(AB11="","-",IF(RANK(AB11,AB$6:AB$35,1)<11,(11-RANK(AB11,AB$6:AB$35,1))*0.5,0)) -> - | AF11: =IF(AE11="","-",IF(RANK(AE11,AE$6:AE$35,1)<11,(11-RANK(AE11,AE$6:AE$35,1))*0.5,0)) -> - | AI11: =IF(AH11="","-",IF(RANK(AH11,AH$6:AH$35,1)<11,(11-RANK(AH11,AH$6:AH$35,1))*0.5,0)) -> - | AL11: =IF(AK11="","-",IF(RANK(AK11,AK$6:AK$35,1)<11,(11-RANK(AK11,AK$6:AK$35,1))*0.5,0)) -> - | AM11: 1 | AN11: 03:39:27 | AO11: =IF(AN11="","-",IF(RANK(AN11,AN$6:AN$35,1)<11,(11-RANK(AN11,AN$6:AN$35,1))*0.5,0)) -> 3.5 | AP11: 1 | AQ11: 02:17:10 | AR11: =IF(AQ11="","-",IF(RANK(AQ11,AQ$6:AQ$35,1)<11,(11-RANK(AQ11,AQ$6:AQ$35,1))*0.5,0)) -> 2 | AS11: 1 | AT11: 01:10:00 | AU11: =IF(AT11="","-",IF(RANK(AT11,AT$6:AT$35,1)<11,(11-RANK(AT11,AT$6:AT$35,1))*0.5,0)) -> 2.5 | AV11: 1 | AW11: 01:11:08 | AX11: =IF(AW11="","-",IF(RANK(AW11,AW$6:AW$35,1)<11,(11-RANK(AW11,AW$6:AW$35,1))*0.5,0)) -> 2 | BA11: =IF(AZ11="","-",IF(RANK(AZ11,AZ$6:AZ$35,1)<11,(11-RANK(AZ11,AZ$6:AZ$35,1))*0.5,0)) -> - | BB11: 1 | BC11: 01:24:58 | BD11: =IF(BC11="","-",IF(RANK(BC11,BC$6:BC$35,1)<11,(11-RANK(BC11,BC$6:BC$35,1))*0.5,0)) -> 3 | BG11: =IF(BF11="","-",IF(RANK(BF11,BF$6:BF$35,1)<11,(11-RANK(BF11,BF$6:BF$35,1))*0.5,0)) -> - | BJ11: =IF(BI11="","-",IF(RANK(BI11,BI$6:BI$35,1)<11,(11-RANK(BI11,BI$6:BI$35,1))*0.5,0)) -> - | BK11: 2 | BL11: 01:38:16 | BM11: =IF(BL11="","-",IF(RANK(BL11,BL$6:BL$35,1)<11,(11-RANK(BL11,BL$6:BL$35,1))*0.5,0)) -> 3.5 | BN11: 1 | BO11: 01:56:55 | BP11: =IF(BO11="","-",IF(RANK(BO11,BO$6:BO$35,1)<11,(11-RANK(BO11,BO$6:BO$35,1))*0.5,0)) -> 1.5 | BS11: =IF(BR11="","-",IF(RANK(BR11,BR$6:BR$35,1)<11,(11-RANK(BR11,BR$6:BR$35,1))*0.5,0)) -> - | BT11: 2 | BU11: 00:49:44 | BV11: =IF(BU11="","-",IF(RANK(BU11,BU$6:BU$35,1)<11,(11-RANK(BU11,BU$6:BU$35,1))*0.5,0)) -> 3 | BY11: =IF(BX11="","-",IF(RANK(BX11,BX$6:BX$35,1)<11,(11-RANK(BX11,BX$6:BX$35,1))*0.5,0)) -> - | CB11: =IF(CA11="","-",IF(RANK(CA11,CA$6:CA$35,1)<11,(11-RANK(CA11,CA$6:CA$35,1))*0.5,0)) -> - | CE11: =IF(CD11="","-",IF(RANK(CD11,CD$6:CD$35,1)<11,(11-RANK(CD11,CD$6:CD$35,1))*0.5,0)) -> - | CH11: =IF(CG11="","-",IF(RANK(CG11,CG$6:CG$35,1)<11,(11-RANK(CG11,CG$6:CG$35,1))*0.5,0)) -> - | CK11: =IF(CJ11="","-",IF(RANK(CJ11,CJ$6:CJ$35,1)<11,(11-RANK(CJ11,CJ$6:CJ$35,1))*0.5,0)) -> -
A12: 7 | B12: Sadílek Radovan | C12: =IF(B12=" ","- ",D12+E12) -> 36.9 | D12: =IF(B12=" ","- ",SUM(I12*$K$4,L12*$N$4,O12*$Q$4,R12*$T$4,U12*$W$4,X12*$Z$4,AA12*$AC$4,AD12*$AF$4,AG12*$AI$4,AJ12*$AL$4,AM12*$AO$4,AP12*$AR$4,AS12*$AU$4,AV12*$AX$4,AY12*$BA$4,BB12*$BD$4,BE12*$BG$4,BH12*$BJ$4,BK12*$BM$4,BN12*$BP$4,BQ12*$BS$4,BT12*$BV$4,BW12*$BY$4,BZ12*$CB$4,CC12*$CE$4,CF12*$CH$4,CI12*$CK$4)) -> 20.4 | E12: =IF(B12=" ","- ",SUM(K12,N12,Q12,T12,W12,Z12,AC12,AF12,AI12,AL12,AO12,AR12,AU12,AX12,BA12,BD12,BG12,BJ12,BM12,BP12,BS12,BV12,BY12,CB12,CE12,CH12,CK12)) -> 16.5 | F12: =IF(B12=" ","- ",SUM(I12*$I$4,L12*$L$4,O12*$O$4,R12*$R$4,U12*$U$4,X12*$X$4,AA12*$AA$4,AD12*$AD$4,AG12*$AG$4,AJ12*$AJ$4,AM12*$AM$4,AP12*$AP$4,AS12*$AS$4,AV12*$AV$4,AY12*$AY$4,BB12*$BB$4,BE12*$BE$4,BH12*$BH$4,BK12*$BK$4,BN12*$BN$4,BQ12*$BQ$4,BT12*$BT$4,BW12*$BW$4,BZ12*$BZ$4,CC12*$CC$4,CF12*$CF$4,CI12*$CI$4)) -> 206.3 | G12: =IF(B12=" ","- ",SUM(I12,L12,O12,R12,U12,X12,AA12,AD12,AG12,AJ12,AM12,AP12,AS12,AV12,AY12,BB12,BE12,BH12,BK12,BN12,BQ12,BT12,BW12,BZ12,CC12,CF12,CI12)) -> 15 | H12: =IF(B12=" ","- ",COUNT(I12,L12,O12,R12,U12,X12,AA12,AD12,AG12,AJ12,AM12,AP12,AS12,AV12,AY12,BB12,BE12,BH12,BK12,BN12,BQ12,BT12,BW12,BZ12,CC12,CF12,CI12)) -> 5 | I12: 8 | J12: 00:34:44 | K12: =IF(J12="","-",IF(RANK(J12,J$6:J$35,1)<11,(11-RANK(J12,J$6:J$35,1))*0.5,0)) -> 3.5 | L12: 2 | M12: 00:25:27 | N12: =IF(M12="","-",IF(RANK(M12,M$6:M$35,1)<11,(11-RANK(M12,M$6:M$35,1))*0.5,0)) -> 3.5 | O12: 2 | P12: 00:29:32 | Q12: =IF(P12="","-",IF(RANK(P12,P$6:P$35,1)<11,(11-RANK(P12,P$6:P$35,1))*0.5,0)) -> 3.5 | T12: =IF(S12="","-",IF(RANK(S12,S$6:S$35,1)<11,(11-RANK(S12,S$6:S$35,1))*0.5,0)) -> - | W12: =IF(V12="","-",IF(RANK(V12,V$6:V$35,1)<11,(11-RANK(V12,V$6:V$35,1))*0.5,0)) -> - | Z12: =IF(Y12="","-",IF(RANK(Y12,Y$6:Y$35,1)<11,(11-RANK(Y12,Y$6:Y$35,1))*0.5,0)) -> - | AC12: =IF(AB12="","-",IF(RANK(AB12,AB$6:AB$35,1)<11,(11-RANK(AB12,AB$6:AB$35,1))*0.5,0)) -> - | AF12: =IF(AE12="","-",IF(RANK(AE12,AE$6:AE$35,1)<11,(11-RANK(AE12,AE$6:AE$35,1))*0.5,0)) -> - | AI12: =IF(AH12="","-",IF(RANK(AH12,AH$6:AH$35,1)<11,(11-RANK(AH12,AH$6:AH$35,1))*0.5,0)) -> - | AL12: =IF(AK12="","-",IF(RANK(AK12,AK$6:AK$35,1)<11,(11-RANK(AK12,AK$6:AK$35,1))*0.5,0)) -> - | AM12: 1 | AN12: 06:30:00 | AO12: =IF(AN12="","-",IF(RANK(AN12,AN$6:AN$35,1)<11,(11-RANK(AN12,AN$6:AN$35,1))*0.5,0)) -> 2.5 | AR12: =IF(AQ12="","-",IF(RANK(AQ12,AQ$6:AQ$35,1)<11,(11-RANK(AQ12,AQ$6:AQ$35,1))*0.5,0)) -> - | AU12: =IF(AT12="","-",IF(RANK(AT12,AT$6:AT$35,1)<11,(11-RANK(AT12,AT$6:AT$35,1))*0.5,0)) -> - | AX12: =IF(AW12="","-",IF(RANK(AW12,AW$6:AW$35,1)<11,(11-RANK(AW12,AW$6:AW$35,1))*0.5,0)) -> - | BA12: =IF(AZ12="","-",IF(RANK(AZ12,AZ$6:AZ$35,1)<11,(11-RANK(AZ12,AZ$6:AZ$35,1))*0.5,0)) -> - | BD12: =IF(BC12="","-",IF(RANK(BC12,BC$6:BC$35,1)<11,(11-RANK(BC12,BC$6:BC$35,1))*0.5,0)) -> - | BG12: =IF(BF12="","-",IF(RANK(BF12,BF$6:BF$35,1)<11,(11-RANK(BF12,BF$6:BF$35,1))*0.5,0)) -> - | BJ12: =IF(BI12="","-",IF(RANK(BI12,BI$6:BI$35,1)<11,(11-RANK(BI12,BI$6:BI$35,1))*0.5,0)) -> - | BM12: =IF(BL12="","-",IF(RANK(BL12,BL$6:BL$35,1)<11,(11-RANK(BL12,BL$6:BL$35,1))*0.5,0)) -> - | BP12: =IF(BO12="","-",IF(RANK(BO12,BO$6:BO$35,1)<11,(11-RANK(BO12,BO$6:BO$35,1))*0.5,0)) -> - | BS12: =IF(BR12="","-",IF(RANK(BR12,BR$6:BR$35,1)<11,(11-RANK(BR12,BR$6:BR$35,1))*0.5,0)) -> - | BT12: 2 | BU12: 00:46:00 | BV12: =IF(BU12="","-",IF(RANK(BU12,BU$6:BU$35,1)<11,(11-RANK(BU12,BU$6:BU$35,1))*0.5,0)) -> 3.5 | BY12: =IF(BX12="","-",IF(RANK(BX12,BX$6:BX$35,1)<11,(11-RANK(BX12,BX$6:BX$35,1))*0.5,0)) -> - | CB12: =IF(CA12="","-",IF(RANK(CA12,CA$6:CA$35,1)<11,(11-RANK(CA12,CA$6:CA$35,1))*0.5,0)) -> - | CE12: =IF(CD12="","-",IF(RANK(CD12,CD$6:CD$35,1)<11,(11-RANK(CD12,CD$6:CD$35,1))*0.5,0)) -> - | CH12: =IF(CG12="","-",IF(RANK(CG12,CG$6:CG$35,1)<11,(11-RANK(CG12,CG$6:CG$35,1))*0.5,0)) -> - | CK12: =IF(CJ12="","-",IF(RANK(CJ12,CJ$6:CJ$35,1)<11,(11-RANK(CJ12,CJ$6:CJ$35,1))*0.5,0)) -> -
A13: 8 | B13: Valkoun Josef | C13: =IF(B13=" ","- ",D13+E13) -> 34.1 | D13: =IF(B13=" ","- ",SUM(I13*$K$4,L13*$N$4,O13*$Q$4,R13*$T$4,U13*$W$4,X13*$Z$4,AA13*$AC$4,AD13*$AF$4,AG13*$AI$4,AJ13*$AL$4,AM13*$AO$4,AP13*$AR$4,AS13*$AU$4,AV13*$AX$4,AY13*$BA$4,BB13*$BD$4,BE13*$BG$4,BH13*$BJ$4,BK13*$BM$4,BN13*$BP$4,BQ13*$BS$4,BT13*$BV$4,BW13*$BY$4,BZ13*$CB$4,CC13*$CE$4,CF13*$CH$4,CI13*$CK$4)) -> 15.6 | E13: =IF(B13=" ","- ",SUM(K13,N13,Q13,T13,W13,Z13,AC13,AF13,AI13,AL13,AO13,AR13,AU13,AX13,BA13,BD13,BG13,BJ13,BM13,BP13,BS13,BV13,BY13,CB13,CE13,CH13,CK13)) -> 18.5 | F13: =IF(B13=" ","- ",SUM(I13*$I$4,L13*$L$4,O13*$O$4,R13*$R$4,U13*$U$4,X13*$X$4,AA13*$AA$4,AD13*$AD$4,AG13*$AG$4,AJ13*$AJ$4,AM13*$AM$4,AP13*$AP$4,AS13*$AS$4,AV13*$AV$4,AY13*$AY$4,BB13*$BB$4,BE13*$BE$4,BH13*$BH$4,BK13*$BK$4,BN13*$BN$4,BQ13*$BQ$4,BT13*$BT$4,BW13*$BW$4,BZ13*$BZ$4,CC13*$CC$4,CF13*$CF$4,CI13*$CI$4)) -> 164 | G13: =IF(B13=" ","- ",SUM(I13,L13,O13,R13,U13,X13,AA13,AD13,AG13,AJ13,AM13,AP13,AS13,AV13,AY13,BB13,BE13,BH13,BK13,BN13,BQ13,BT13,BW13,BZ13,CC13,CF13,CI13)) -> 9 | H13: =IF(B13=" ","- ",COUNT(I13,L13,O13,R13,U13,X13,AA13,AD13,AG13,AJ13,AM13,AP13,AS13,AV13,AY13,BB13,BE13,BH13,BK13,BN13,BQ13,BT13,BW13,BZ13,CC13,CF13,CI13)) -> 7 | I13: 1 | J13: 00:46:55 | K13: =IF(J13="","-",IF(RANK(J13,J$6:J$35,1)<11,(11-RANK(J13,J$6:J$35,1))*0.5,0)) -> 2 | L13: 2 | M13: 00:32:15 | N13: =IF(M13="","-",IF(RANK(M13,M$6:M$35,1)<11,(11-RANK(M13,M$6:M$35,1))*0.5,0)) -> 2.5 | O13: 2 | P13: 00:35:00 | Q13: =IF(P13="","-",IF(RANK(P13,P$6:P$35,1)<11,(11-RANK(P13,P$6:P$35,1))*0.5,0)) -> 1.5 | T13: =IF(S13="","-",IF(RANK(S13,S$6:S$35,1)<11,(11-RANK(S13,S$6:S$35,1))*0.5,0)) -> - | W13: =IF(V13="","-",IF(RANK(V13,V$6:V$35,1)<11,(11-RANK(V13,V$6:V$35,1))*0.5,0)) -> - | Z13: =IF(Y13="","-",IF(RANK(Y13,Y$6:Y$35,1)<11,(11-RANK(Y13,Y$6:Y$35,1))*0.5,0)) -> - | AA13: 1 | AB13: 00:51:47 | AC13: =IF(AB13="","-",IF(RANK(AB13,AB$6:AB$35,1)<11,(11-RANK(AB13,AB$6:AB$35,1))*0.5,0)) -> 3 | AF13: =IF(AE13="","-",IF(RANK(AE13,AE$6:AE$35,1)<11,(11-RANK(AE13,AE$6:AE$35,1))*0.5,0)) -> - | AI13: =IF(AH13="","-",IF(RANK(AH13,AH$6:AH$35,1)<11,(11-RANK(AH13,AH$6:AH$35,1))*0.5,0)) -> - | AL13: =IF(AK13="","-",IF(RANK(AK13,AK$6:AK$35,1)<11,(11-RANK(AK13,AK$6:AK$35,1))*0.5,0)) -> - | AO13: =IF(AN13="","-",IF(RANK(AN13,AN$6:AN$35,1)<11,(11-RANK(AN13,AN$6:AN$35,1))*0.5,0)) -> - | AP13: 1 | AQ13: 01:42:24 | AR13: =IF(AQ13="","-",IF(RANK(AQ13,AQ$6:AQ$35,1)<11,(11-RANK(AQ13,AQ$6:AQ$35,1))*0.5,0)) -> 3.5 | AU13: =IF(AT13="","-",IF(RANK(AT13,AT$6:AT$35,1)<11,(11-RANK(AT13,AT$6:AT$35,1))*0.5,0)) -> - | AX13: =IF(AW13="","-",IF(RANK(AW13,AW$6:AW$35,1)<11,(11-RANK(AW13,AW$6:AW$35,1))*0.5,0)) -> - | AY13: 1 | AZ13: 01:30:00 | BA13: =IF(AZ13="","-",IF(RANK(AZ13,AZ$6:AZ$35,1)<11,(11-RANK(AZ13,AZ$6:AZ$35,1))*0.5,0)) -> 2.5 | BD13: =IF(BC13="","-",IF(RANK(BC13,BC$6:BC$35,1)<11,(11-RANK(BC13,BC$6:BC$35,1))*0.5,0)) -> - | BG13: =IF(BF13="","-",IF(RANK(BF13,BF$6:BF$35,1)<11,(11-RANK(BF13,BF$6:BF$35,1))*0.5,0)) -> - | BJ13: =IF(BI13="","-",IF(RANK(BI13,BI$6:BI$35,1)<11,(11-RANK(BI13,BI$6:BI$35,1))*0.5,0)) -> - | BM13: =IF(BL13="","-",IF(RANK(BL13,BL$6:BL$35,1)<11,(11-RANK(BL13,BL$6:BL$35,1))*0.5,0)) -> - | BP13: =IF(BO13="","-",IF(RANK(BO13,BO$6:BO$35,1)<11,(11-RANK(BO13,BO$6:BO$35,1))*0.5,0)) -> - | BS13: =IF(BR13="","-",IF(RANK(BR13,BR$6:BR$35,1)<11,(11-RANK(BR13,BR$6:BR$35,1))*0.5,0)) -> - | BV13: =IF(BU13="","-",IF(RANK(BU13,BU$6:BU$35,1)<11,(11-RANK(BU13,BU$6:BU$35,1))*0.5,0)) -> - | BY13: =IF(BX13="","-",IF(RANK(BX13,BX$6:BX$35,1)<11,(11-RANK(BX13,BX$6:BX$35,1))*0.5,0)) -> - | BZ13: 1 | CA13: 02:11:25 | CB13: =IF(CA13="","-",IF(RANK(CA13,CA$6:CA$35,1)<11,(11-RANK(CA13,CA$6:CA$35,1))*0.5,0)) -> 3.5 | CE13: =IF(CD13="","-",IF(RANK(CD13,CD$6:CD$35,1)<11,(11-RANK(CD13,CD$6:CD$35,1))*0.5,0)) -> - | CH13: =IF(CG13="","-",IF(RANK(CG13,CG$6:CG$35,1)<11,(11-RANK(CG13,CG$6:CG$35,1))*0.5,0)) -> - | CK13: =IF(CJ13="","-",IF(RANK(CJ13,CJ$6:CJ$35,1)<11,(11-RANK(CJ13,CJ$6:CJ$35,1))*0.5,0)) -> -
A14: 9 | B14: Brázda Hynek | C14: =IF(B14=" ","- ",D14+E14) -> 24.2 | D14: =IF(B14=" ","- ",SUM(I14*$K$4,L14*$N$4,O14*$Q$4,R14*$T$4,U14*$W$4,X14*$Z$4,AA14*$AC$4,AD14*$AF$4,AG14*$AI$4,AJ14*$AL$4,AM14*$AO$4,AP14*$AR$4,AS14*$AU$4,AV14*$AX$4,AY14*$BA$4,BB14*$BD$4,BE14*$BG$4,BH14*$BJ$4,BK14*$BM$4,BN14*$BP$4,BQ14*$BS$4,BT14*$BV$4,BW14*$BY$4,BZ14*$CB$4,CC14*$CE$4,CF14*$CH$4,CI14*$CK$4)) -> 11.2 | E14: =IF(B14=" ","- ",SUM(K14,N14,Q14,T14,W14,Z14,AC14,AF14,AI14,AL14,AO14,AR14,AU14,AX14,BA14,BD14,BG14,BJ14,BM14,BP14,BS14,BV14,BY14,CB14,CE14,CH14,CK14)) -> 13 | F14: =IF(B14=" ","- ",SUM(I14*$I$4,L14*$L$4,O14*$O$4,R14*$R$4,U14*$U$4,X14*$X$4,AA14*$AA$4,AD14*$AD$4,AG14*$AG$4,AJ14*$AJ$4,AM14*$AM$4,AP14*$AP$4,AS14*$AS$4,AV14*$AV$4,AY14*$AY$4,BB14*$BB$4,BE14*$BE$4,BH14*$BH$4,BK14*$BK$4,BN14*$BN$4,BQ14*$BQ$4,BT14*$BT$4,BW14*$BW$4,BZ14*$BZ$4,CC14*$CC$4,CF14*$CF$4,CI14*$CI$4)) -> 140.3 | G14: =IF(B14=" ","- ",SUM(I14,L14,O14,R14,U14,X14,AA14,AD14,AG14,AJ14,AM14,AP14,AS14,AV14,AY14,BB14,BE14,BH14,BK14,BN14,BQ14,BT14,BW14,BZ14,CC14,CF14,CI14)) -> 5 | H14: =IF(B14=" ","- ",COUNT(I14,L14,O14,R14,U14,X14,AA14,AD14,AG14,AJ14,AM14,AP14,AS14,AV14,AY14,BB14,BE14,BH14,BK14,BN14,BQ14,BT14,BW14,BZ14,CC14,CF14,CI14)) -> 4 | K14: =IF(J14="","-",IF(RANK(J14,J$6:J$35,1)<11,(11-RANK(J14,J$6:J$35,1))*0.5,0)) -> - | N14: =IF(M14="","-",IF(RANK(M14,M$6:M$35,1)<11,(11-RANK(M14,M$6:M$35,1))*0.5,0)) -> - | O14: 2 | P14: 00:30:35 | Q14: =IF(P14="","-",IF(RANK(P14,P$6:P$35,1)<11,(11-RANK(P14,P$6:P$35,1))*0.5,0)) -> 3 | T14: =IF(S14="","-",IF(RANK(S14,S$6:S$35,1)<11,(11-RANK(S14,S$6:S$35,1))*0.5,0)) -> - | U14: 1 | V14: 01:46:20 | W14: =IF(V14="","-",IF(RANK(V14,V$6:V$35,1)<11,(11-RANK(V14,V$6:V$35,1))*0.5,0)) -> 3.5 | Z14: =IF(Y14="","-",IF(RANK(Y14,Y$6:Y$35,1)<11,(11-RANK(Y14,Y$6:Y$35,1))*0.5,0)) -> - | AC14: =IF(AB14="","-",IF(RANK(AB14,AB$6:AB$35,1)<11,(11-RANK(AB14,AB$6:AB$35,1))*0.5,0)) -> - | AF14: =IF(AE14="","-",IF(RANK(AE14,AE$6:AE$35,1)<11,(11-RANK(AE14,AE$6:AE$35,1))*0.5,0)) -> - | AI14: =IF(AH14="","-",IF(RANK(AH14,AH$6:AH$35,1)<11,(11-RANK(AH14,AH$6:AH$35,1))*0.5,0)) -> - | AL14: =IF(AK14="","-",IF(RANK(AK14,AK$6:AK$35,1)<11,(11-RANK(AK14,AK$6:AK$35,1))*0.5,0)) -> - | AO14: =IF(AN14="","-",IF(RANK(AN14,AN$6:AN$35,1)<11,(11-RANK(AN14,AN$6:AN$35,1))*0.5,0)) -> - | AR14: =IF(AQ14="","-",IF(RANK(AQ14,AQ$6:AQ$35,1)<11,(11-RANK(AQ14,AQ$6:AQ$35,1))*0.5,0)) -> - | AU14: =IF(AT14="","-",IF(RANK(AT14,AT$6:AT$35,1)<11,(11-RANK(AT14,AT$6:AT$35,1))*0.5,0)) -> - | AX14: =IF(AW14="","-",IF(RANK(AW14,AW$6:AW$35,1)<11,(11-RANK(AW14,AW$6:AW$35,1))*0.5,0)) -> - | BA14: =IF(AZ14="","-",IF(RANK(AZ14,AZ$6:AZ$35,1)<11,(11-RANK(AZ14,AZ$6:AZ$35,1))*0.5,0)) -> - | BD14: =IF(BC14="","-",IF(RANK(BC14,BC$6:BC$35,1)<11,(11-RANK(BC14,BC$6:BC$35,1))*0.5,0)) -> - | BG14: =IF(BF14="","-",IF(RANK(BF14,BF$6:BF$35,1)<11,(11-RANK(BF14,BF$6:BF$35,1))*0.5,0)) -> - | BH14: 1 | BI14: 01:35:00 | BJ14: =IF(BI14="","-",IF(RANK(BI14,BI$6:BI$35,1)<11,(11-RANK(BI14,BI$6:BI$35,1))*0.5,0)) -> 3.5 | BM14: =IF(BL14="","-",IF(RANK(BL14,BL$6:BL$35,1)<11,(11-RANK(BL14,BL$6:BL$35,1))*0.5,0)) -> - | BN14: 1 | BO14: 01:29:48 | BP14: =IF(BO14="","-",IF(RANK(BO14,BO$6:BO$35,1)<11,(11-RANK(BO14,BO$6:BO$35,1))*0.5,0)) -> 3 | BS14: =IF(BR14="","-",IF(RANK(BR14,BR$6:BR$35,1)<11,(11-RANK(BR14,BR$6:BR$35,1))*0.5,0)) -> - | BV14: =IF(BU14="","-",IF(RANK(BU14,BU$6:BU$35,1)<11,(11-RANK(BU14,BU$6:BU$35,1))*0.5,0)) -> - | BY14: =IF(BX14="","-",IF(RANK(BX14,BX$6:BX$35,1)<11,(11-RANK(BX14,BX$6:BX$35,1))*0.5,0)) -> - | CB14: =IF(CA14="","-",IF(RANK(CA14,CA$6:CA$35,1)<11,(11-RANK(CA14,CA$6:CA$35,1))*0.5,0)) -> - | CE14: =IF(CD14="","-",IF(RANK(CD14,CD$6:CD$35,1)<11,(11-RANK(CD14,CD$6:CD$35,1))*0.5,0)) -> - | CH14: =IF(CG14="","-",IF(RANK(CG14,CG$6:CG$35,1)<11,(11-RANK(CG14,CG$6:CG$35,1))*0.5,0)) -> - | CK14: =IF(CJ14="","-",IF(RANK(CJ14,CJ$6:CJ$35,1)<11,(11-RANK(CJ14,CJ$6:CJ$35,1))*0.5,0)) -> -
A15: 10 | B15: Havelková Marcela | C15: =IF(B15=" ","- ",D15+E15) -> 17.4 | D15: =IF(B15=" ","- ",SUM(I15*$K$4,L15*$N$4,O15*$Q$4,R15*$T$4,U15*$W$4,X15*$Z$4,AA15*$AC$4,AD15*$AF$4,AG15*$AI$4,AJ15*$AL$4,AM15*$AO$4,AP15*$AR$4,AS15*$AU$4,AV15*$AX$4,AY15*$BA$4,BB15*$BD$4,BE15*$BG$4,BH15*$BJ$4,BK15*$BM$4,BN15*$BP$4,BQ15*$BS$4,BT15*$BV$4,BW15*$BY$4,BZ15*$CB$4,CC15*$CE$4,CF15*$CH$4,CI15*$CK$4)) -> 9.9 | E15: =IF(B15=" ","- ",SUM(K15,N15,Q15,T15,W15,Z15,AC15,AF15,AI15,AL15,AO15,AR15,AU15,AX15,BA15,BD15,BG15,BJ15,BM15,BP15,BS15,BV15,BY15,CB15,CE15,CH15,CK15)) -> 7.5 | F15: =IF(B15=" ","- ",SUM(I15*$I$4,L15*$L$4,O15*$O$4,R15*$R$4,U15*$U$4,X15*$X$4,AA15*$AA$4,AD15*$AD$4,AG15*$AG$4,AJ15*$AJ$4,AM15*$AM$4,AP15*$AP$4,AS15*$AS$4,AV15*$AV$4,AY15*$AY$4,BB15*$BB$4,BE15*$BE$4,BH15*$BH$4,BK15*$BK$4,BN15*$BN$4,BQ15*$BQ$4,BT15*$BT$4,BW15*$BW$4,BZ15*$BZ$4,CC15*$CC$4,CF15*$CF$4,CI15*$CI$4)) -> 118.3 | G15: =IF(B15=" ","- ",SUM(I15,L15,O15,R15,U15,X15,AA15,AD15,AG15,AJ15,AM15,AP15,AS15,AV15,AY15,BB15,BE15,BH15,BK15,BN15,BQ15,BT15,BW15,BZ15,CC15,CF15,CI15)) -> 6 | H15: =IF(B15=" ","- ",COUNT(I15,L15,O15,R15,U15,X15,AA15,AD15,AG15,AJ15,AM15,AP15,AS15,AV15,AY15,BB15,BE15,BH15,BK15,BN15,BQ15,BT15,BW15,BZ15,CC15,CF15,CI15)) -> 4 | K15: =IF(J15="","-",IF(RANK(J15,J$6:J$35,1)<11,(11-RANK(J15,J$6:J$35,1))*0.5,0)) -> - | L15: 2 | M15: 00:33:55 | N15: =IF(M15="","-",IF(RANK(M15,M$6:M$35,1)<11,(11-RANK(M15,M$6:M$35,1))*0.5,0)) -> 2 | O15: 2 | P15: 00:57:40 | Q15: =IF(P15="","-",IF(RANK(P15,P$6:P$35,1)<11,(11-RANK(P15,P$6:P$35,1))*0.5,0)) -> 0 | T15: =IF(S15="","-",IF(RANK(S15,S$6:S$35,1)<11,(11-RANK(S15,S$6:S$35,1))*0.5,0)) -> - | W15: =IF(V15="","-",IF(RANK(V15,V$6:V$35,1)<11,(11-RANK(V15,V$6:V$35,1))*0.5,0)) -> - | Z15: =IF(Y15="","-",IF(RANK(Y15,Y$6:Y$35,1)<11,(11-RANK(Y15,Y$6:Y$35,1))*0.5,0)) -> - | AC15: =IF(AB15="","-",IF(RANK(AB15,AB$6:AB$35,1)<11,(11-RANK(AB15,AB$6:AB$35,1))*0.5,0)) -> - | AF15: =IF(AE15="","-",IF(RANK(AE15,AE$6:AE$35,1)<11,(11-RANK(AE15,AE$6:AE$35,1))*0.5,0)) -> - | AI15: =IF(AH15="","-",IF(RANK(AH15,AH$6:AH$35,1)<11,(11-RANK(AH15,AH$6:AH$35,1))*0.5,0)) -> - | AL15: =IF(AK15="","-",IF(RANK(AK15,AK$6:AK$35,1)<11,(11-RANK(AK15,AK$6:AK$35,1))*0.5,0)) -> - | AO15: =IF(AN15="","-",IF(RANK(AN15,AN$6:AN$35,1)<11,(11-RANK(AN15,AN$6:AN$35,1))*0.5,0)) -> - | AR15: =IF(AQ15="","-",IF(RANK(AQ15,AQ$6:AQ$35,1)<11,(11-RANK(AQ15,AQ$6:AQ$35,1))*0.5,0)) -> - | AU15: =IF(AT15="","-",IF(RANK(AT15,AT$6:AT$35,1)<11,(11-RANK(AT15,AT$6:AT$35,1))*0.5,0)) -> - | AX15: =IF(AW15="","-",IF(RANK(AW15,AW$6:AW$35,1)<11,(11-RANK(AW15,AW$6:AW$35,1))*0.5,0)) -> - | BA15: =IF(AZ15="","-",IF(RANK(AZ15,AZ$6:AZ$35,1)<11,(11-RANK(AZ15,AZ$6:AZ$35,1))*0.5,0)) -> - | BD15: =IF(BC15="","-",IF(RANK(BC15,BC$6:BC$35,1)<11,(11-RANK(BC15,BC$6:BC$35,1))*0.5,0)) -> - | BG15: =IF(BF15="","-",IF(RANK(BF15,BF$6:BF$35,1)<11,(11-RANK(BF15,BF$6:BF$35,1))*0.5,0)) -> - | BH15: 1 | BI15: 02:03:55 | BJ15: =IF(BI15="","-",IF(RANK(BI15,BI$6:BI$35,1)<11,(11-RANK(BI15,BI$6:BI$35,1))*0.5,0)) -> 3 | BM15: =IF(BL15="","-",IF(RANK(BL15,BL$6:BL$35,1)<11,(11-RANK(BL15,BL$6:BL$35,1))*0.5,0)) -> - | BN15: 1 | BO15: 01:51:00 | BP15: =IF(BO15="","-",IF(RANK(BO15,BO$6:BO$35,1)<11,(11-RANK(BO15,BO$6:BO$35,1))*0.5,0)) -> 2.5 | BS15: =IF(BR15="","-",IF(RANK(BR15,BR$6:BR$35,1)<11,(11-RANK(BR15,BR$6:BR$35,1))*0.5,0)) -> - | BV15: =IF(BU15="","-",IF(RANK(BU15,BU$6:BU$35,1)<11,(11-RANK(BU15,BU$6:BU$35,1))*0.5,0)) -> - | BY15: =IF(BX15="","-",IF(RANK(BX15,BX$6:BX$35,1)<11,(11-RANK(BX15,BX$6:BX$35,1))*0.5,0)) -> - | CB15: =IF(CA15="","-",IF(RANK(CA15,CA$6:CA$35,1)<11,(11-RANK(CA15,CA$6:CA$35,1))*0.5,0)) -> - | CE15: =IF(CD15="","-",IF(RANK(CD15,CD$6:CD$35,1)<11,(11-RANK(CD15,CD$6:CD$35,1))*0.5,0)) -> - | CH15: =IF(CG15="","-",IF(RANK(CG15,CG$6:CG$35,1)<11,(11-RANK(CG15,CG$6:CG$35,1))*0.5,0)) -> - | CK15: =IF(CJ15="","-",IF(RANK(CJ15,CJ$6:CJ$35,1)<11,(11-RANK(CJ15,CJ$6:CJ$35,1))*0.5,0)) -> -
A16: 11 | B16: Ringlová Edita | C16: =IF(B16=" ","- ",D16+E16) -> 11 | D16: =IF(B16=" ","- ",SUM(I16*$K$4,L16*$N$4,O16*$Q$4,R16*$T$4,U16*$W$4,X16*$Z$4,AA16*$AC$4,AD16*$AF$4,AG16*$AI$4,AJ16*$AL$4,AM16*$AO$4,AP16*$AR$4,AS16*$AU$4,AV16*$AX$4,AY16*$BA$4,BB16*$BD$4,BE16*$BG$4,BH16*$BJ$4,BK16*$BM$4,BN16*$BP$4,BQ16*$BS$4,BT16*$BV$4,BW16*$BY$4,BZ16*$CB$4,CC16*$CE$4,CF16*$CH$4,CI16*$CK$4)) -> 8.5 | E16: =IF(B16=" ","- ",SUM(K16,N16,Q16,T16,W16,Z16,AC16,AF16,AI16,AL16,AO16,AR16,AU16,AX16,BA16,BD16,BG16,BJ16,BM16,BP16,BS16,BV16,BY16,CB16,CE16,CH16,CK16)) -> 2.5 | F16: =IF(B16=" ","- ",SUM(I16*$I$4,L16*$L$4,O16*$O$4,R16*$R$4,U16*$U$4,X16*$X$4,AA16*$AA$4,AD16*$AD$4,AG16*$AG$4,AJ16*$AJ$4,AM16*$AM$4,AP16*$AP$4,AS16*$AS$4,AV16*$AV$4,AY16*$AY$4,BB16*$BB$4,BE16*$BE$4,BH16*$BH$4,BK16*$BK$4,BN16*$BN$4,BQ16*$BQ$4,BT16*$BT$4,BW16*$BW$4,BZ16*$BZ$4,CC16*$CC$4,CF16*$CF$4,CI16*$CI$4)) -> 102.8 | G16: =IF(B16=" ","- ",SUM(I16,L16,O16,R16,U16,X16,AA16,AD16,AG16,AJ16,AM16,AP16,AS16,AV16,AY16,BB16,BE16,BH16,BK16,BN16,BQ16,BT16,BW16,BZ16,CC16,CF16,CI16)) -> 6 | H16: =IF(B16=" ","- ",COUNT(I16,L16,O16,R16,U16,X16,AA16,AD16,AG16,AJ16,AM16,AP16,AS16,AV16,AY16,BB16,BE16,BH16,BK16,BN16,BQ16,BT16,BW16,BZ16,CC16,CF16,CI16)) -> 4 | K16: =IF(J16="","-",IF(RANK(J16,J$6:J$35,1)<11,(11-RANK(J16,J$6:J$35,1))*0.5,0)) -> - | L16: 2 | M16: 00:40:57 | N16: =IF(M16="","-",IF(RANK(M16,M$6:M$35,1)<11,(11-RANK(M16,M$6:M$35,1))*0.5,0)) -> 0 | O16: 2 | P16: 00:43:00 | Q16: =IF(P16="","-",IF(RANK(P16,P$6:P$35,1)<11,(11-RANK(P16,P$6:P$35,1))*0.5,0)) -> 0 | T16: =IF(S16="","-",IF(RANK(S16,S$6:S$35,1)<11,(11-RANK(S16,S$6:S$35,1))*0.5,0)) -> - | W16: =IF(V16="","-",IF(RANK(V16,V$6:V$35,1)<11,(11-RANK(V16,V$6:V$35,1))*0.5,0)) -> - | Z16: =IF(Y16="","-",IF(RANK(Y16,Y$6:Y$35,1)<11,(11-RANK(Y16,Y$6:Y$35,1))*0.5,0)) -> - | AC16: =IF(AB16="","-",IF(RANK(AB16,AB$6:AB$35,1)<11,(11-RANK(AB16,AB$6:AB$35,1))*0.5,0)) -> - | AF16: =IF(AE16="","-",IF(RANK(AE16,AE$6:AE$35,1)<11,(11-RANK(AE16,AE$6:AE$35,1))*0.5,0)) -> - | AI16: =IF(AH16="","-",IF(RANK(AH16,AH$6:AH$35,1)<11,(11-RANK(AH16,AH$6:AH$35,1))*0.5,0)) -> - | AL16: =IF(AK16="","-",IF(RANK(AK16,AK$6:AK$35,1)<11,(11-RANK(AK16,AK$6:AK$35,1))*0.5,0)) -> - | AO16: =IF(AN16="","-",IF(RANK(AN16,AN$6:AN$35,1)<11,(11-RANK(AN16,AN$6:AN$35,1))*0.5,0)) -> - | AR16: =IF(AQ16="","-",IF(RANK(AQ16,AQ$6:AQ$35,1)<11,(11-RANK(AQ16,AQ$6:AQ$35,1))*0.5,0)) -> - | AU16: =IF(AT16="","-",IF(RANK(AT16,AT$6:AT$35,1)<11,(11-RANK(AT16,AT$6:AT$35,1))*0.5,0)) -> - | AV16: 1 | AW16: 01:28:00 | AX16: =IF(AW16="","-",IF(RANK(AW16,AW$6:AW$35,1)<11,(11-RANK(AW16,AW$6:AW$35,1))*0.5,0)) -> 1.5 | BA16: =IF(AZ16="","-",IF(RANK(AZ16,AZ$6:AZ$35,1)<11,(11-RANK(AZ16,AZ$6:AZ$35,1))*0.5,0)) -> - | BD16: =IF(BC16="","-",IF(RANK(BC16,BC$6:BC$35,1)<11,(11-RANK(BC16,BC$6:BC$35,1))*0.5,0)) -> - | BG16: =IF(BF16="","-",IF(RANK(BF16,BF$6:BF$35,1)<11,(11-RANK(BF16,BF$6:BF$35,1))*0.5,0)) -> - | BJ16: =IF(BI16="","-",IF(RANK(BI16,BI$6:BI$35,1)<11,(11-RANK(BI16,BI$6:BI$35,1))*0.5,0)) -> - | BM16: =IF(BL16="","-",IF(RANK(BL16,BL$6:BL$35,1)<11,(11-RANK(BL16,BL$6:BL$35,1))*0.5,0)) -> - | BN16: 1 | BO16: 02:04:00 | BP16: =IF(BO16="","-",IF(RANK(BO16,BO$6:BO$35,1)<11,(11-RANK(BO16,BO$6:BO$35,1))*0.5,0)) -> 1 | BS16: =IF(BR16="","-",IF(RANK(BR16,BR$6:BR$35,1)<11,(11-RANK(BR16,BR$6:BR$35,1))*0.5,0)) -> - | BV16: =IF(BU16="","-",IF(RANK(BU16,BU$6:BU$35,1)<11,(11-RANK(BU16,BU$6:BU$35,1))*0.5,0)) -> - | BY16: =IF(BX16="","-",IF(RANK(BX16,BX$6:BX$35,1)<11,(11-RANK(BX16,BX$6:BX$35,1))*0.5,0)) -> - | CB16: =IF(CA16="","-",IF(RANK(CA16,CA$6:CA$35,1)<11,(11-RANK(CA16,CA$6:CA$35,1))*0.5,0)) -> - | CE16: =IF(CD16="","-",IF(RANK(CD16,CD$6:CD$35,1)<11,(11-RANK(CD16,CD$6:CD$35,1))*0.5,0)) -> - | CH16: =IF(CG16="","-",IF(RANK(CG16,CG$6:CG$35,1)<11,(11-RANK(CG16,CG$6:CG$35,1))*0.5,0)) -> - | CK16: =IF(CJ16="","-",IF(RANK(CJ16,CJ$6:CJ$35,1)<11,(11-RANK(CJ16,CJ$6:CJ$35,1))*0.5,0)) -> -
A17: 12 | B17: Hejna Petr | C17: =IF(B17=" ","- ",D17+E17) -> 10.6 | D17: =IF(B17=" ","- ",SUM(I17*$K$4,L17*$N$4,O17*$Q$4,R17*$T$4,U17*$W$4,X17*$Z$4,AA17*$AC$4,AD17*$AF$4,AG17*$AI$4,AJ17*$AL$4,AM17*$AO$4,AP17*$AR$4,AS17*$AU$4,AV17*$AX$4,AY17*$BA$4,BB17*$BD$4,BE17*$BG$4,BH17*$BJ$4,BK17*$BM$4,BN17*$BP$4,BQ17*$BS$4,BT17*$BV$4,BW17*$BY$4,BZ17*$CB$4,CC17*$CE$4,CF17*$CH$4,CI17*$CK$4)) -> 5.1 | E17: =IF(B17=" ","- ",SUM(K17,N17,Q17,T17,W17,Z17,AC17,AF17,AI17,AL17,AO17,AR17,AU17,AX17,BA17,BD17,BG17,BJ17,BM17,BP17,BS17,BV17,BY17,CB17,CE17,CH17,CK17)) -> 5.5 | F17: =IF(B17=" ","- ",SUM(I17*$I$4,L17*$L$4,O17*$O$4,R17*$R$4,U17*$U$4,X17*$X$4,AA17*$AA$4,AD17*$AD$4,AG17*$AG$4,AJ17*$AJ$4,AM17*$AM$4,AP17*$AP$4,AS17*$AS$4,AV17*$AV$4,AY17*$AY$4,BB17*$BB$4,BE17*$BE$4,BH17*$BH$4,BK17*$BK$4,BN17*$BN$4,BQ17*$BQ$4,BT17*$BT$4,BW17*$BW$4,BZ17*$BZ$4,CC17*$CC$4,CF17*$CF$4,CI17*$CI$4)) -> 61.4 | G17: =IF(B17=" ","- ",SUM(I17,L17,O17,R17,U17,X17,AA17,AD17,AG17,AJ17,AM17,AP17,AS17,AV17,AY17,BB17,BE17,BH17,BK17,BN17,BQ17,BT17,BW17,BZ17,CC17,CF17,CI17)) -> 2 | H17: =IF(B17=" ","- ",COUNT(I17,L17,O17,R17,U17,X17,AA17,AD17,AG17,AJ17,AM17,AP17,AS17,AV17,AY17,BB17,BE17,BH17,BK17,BN17,BQ17,BT17,BW17,BZ17,CC17,CF17,CI17)) -> 2 | K17: =IF(J17="","-",IF(RANK(J17,J$6:J$35,1)<11,(11-RANK(J17,J$6:J$35,1))*0.5,0)) -> - | N17: =IF(M17="","-",IF(RANK(M17,M$6:M$35,1)<11,(11-RANK(M17,M$6:M$35,1))*0.5,0)) -> - | Q17: =IF(P17="","-",IF(RANK(P17,P$6:P$35,1)<11,(11-RANK(P17,P$6:P$35,1))*0.5,0)) -> - | T17: =IF(S17="","-",IF(RANK(S17,S$6:S$35,1)<11,(11-RANK(S17,S$6:S$35,1))*0.5,0)) -> - | W17: =IF(V17="","-",IF(RANK(V17,V$6:V$35,1)<11,(11-RANK(V17,V$6:V$35,1))*0.5,0)) -> - | Z17: =IF(Y17="","-",IF(RANK(Y17,Y$6:Y$35,1)<11,(11-RANK(Y17,Y$6:Y$35,1))*0.5,0)) -> - | AC17: =IF(AB17="","-",IF(RANK(AB17,AB$6:AB$35,1)<11,(11-RANK(AB17,AB$6:AB$35,1))*0.5,0)) -> - | AF17: =IF(AE17="","-",IF(RANK(AE17,AE$6:AE$35,1)<11,(11-RANK(AE17,AE$6:AE$35,1))*0.5,0)) -> - | AI17: =IF(AH17="","-",IF(RANK(AH17,AH$6:AH$35,1)<11,(11-RANK(AH17,AH$6:AH$35,1))*0.5,0)) -> - | AL17: =IF(AK17="","-",IF(RANK(AK17,AK$6:AK$35,1)<11,(11-RANK(AK17,AK$6:AK$35,1))*0.5,0)) -> - | AO17: =IF(AN17="","-",IF(RANK(AN17,AN$6:AN$35,1)<11,(11-RANK(AN17,AN$6:AN$35,1))*0.5,0)) -> - | AR17: =IF(AQ17="","-",IF(RANK(AQ17,AQ$6:AQ$35,1)<11,(11-RANK(AQ17,AQ$6:AQ$35,1))*0.5,0)) -> - | AU17: =IF(AT17="","-",IF(RANK(AT17,AT$6:AT$35,1)<11,(11-RANK(AT17,AT$6:AT$35,1))*0.5,0)) -> - | AX17: =IF(AW17="","-",IF(RANK(AW17,AW$6:AW$35,1)<11,(11-RANK(AW17,AW$6:AW$35,1))*0.5,0)) -> - | BA17: =IF(AZ17="","-",IF(RANK(AZ17,AZ$6:AZ$35,1)<11,(11-RANK(AZ17,AZ$6:AZ$35,1))*0.5,0)) -> - | BD17: =IF(BC17="","-",IF(RANK(BC17,BC$6:BC$35,1)<11,(11-RANK(BC17,BC$6:BC$35,1))*0.5,0)) -> - | BG17: =IF(BF17="","-",IF(RANK(BF17,BF$6:BF$35,1)<11,(11-RANK(BF17,BF$6:BF$35,1))*0.5,0)) -> - | BJ17: =IF(BI17="","-",IF(RANK(BI17,BI$6:BI$35,1)<11,(11-RANK(BI17,BI$6:BI$35,1))*0.5,0)) -> - | BM17: =IF(BL17="","-",IF(RANK(BL17,BL$6:BL$35,1)<11,(11-RANK(BL17,BL$6:BL$35,1))*0.5,0)) -> - | BP17: =IF(BO17="","-",IF(RANK(BO17,BO$6:BO$35,1)<11,(11-RANK(BO17,BO$6:BO$35,1))*0.5,0)) -> - | BS17: =IF(BR17="","-",IF(RANK(BR17,BR$6:BR$35,1)<11,(11-RANK(BR17,BR$6:BR$35,1))*0.5,0)) -> - | BV17: =IF(BU17="","-",IF(RANK(BU17,BU$6:BU$35,1)<11,(11-RANK(BU17,BU$6:BU$35,1))*0.5,0)) -> - | BY17: =IF(BX17="","-",IF(RANK(BX17,BX$6:BX$35,1)<11,(11-RANK(BX17,BX$6:BX$35,1))*0.5,0)) -> - | BZ17: 1 | CA17: 02:36:50 | CB17: =IF(CA17="","-",IF(RANK(CA17,CA$6:CA$35,1)<11,(11-RANK(CA17,CA$6:CA$35,1))*0.5,0)) -> 2.5 | CE17: =IF(CD17="","-",IF(RANK(CD17,CD$6:CD$35,1)<11,(11-RANK(CD17,CD$6:CD$35,1))*0.5,0)) -> - | CF17: 1 | CG17: 00:57:27 | CH17: =IF(CG17="","-",IF(RANK(CG17,CG$6:CG$35,1)<11,(11-RANK(CG17,CG$6:CG$35,1))*0.5,0)) -> 3 | CK17: =IF(CJ17="","-",IF(RANK(CJ17,CJ$6:CJ$35,1)<11,(11-RANK(CJ17,CJ$6:CJ$35,1))*0.5,0)) -> -
A18: 13 | B18: Trojánková Radka | C18: =IF(B18=" ","- ",D18+E18) -> 9.1 | D18: =IF(B18=" ","- ",SUM(I18*$K$4,L18*$N$4,O18*$Q$4,R18*$T$4,U18*$W$4,X18*$Z$4,AA18*$AC$4,AD18*$AF$4,AG18*$AI$4,AJ18*$AL$4,AM18*$AO$4,AP18*$AR$4,AS18*$AU$4,AV18*$AX$4,AY18*$BA$4,BB18*$BD$4,BE18*$BG$4,BH18*$BJ$4,BK18*$BM$4,BN18*$BP$4,BQ18*$BS$4,BT18*$BV$4,BW18*$BY$4,BZ18*$CB$4,CC18*$CE$4,CF18*$CH$4,CI18*$CK$4)) -> 5.6 | E18: =IF(B18=" ","- ",SUM(K18,N18,Q18,T18,W18,Z18,AC18,AF18,AI18,AL18,AO18,AR18,AU18,AX18,BA18,BD18,BG18,BJ18,BM18,BP18,BS18,BV18,BY18,CB18,CE18,CH18,CK18)) -> 3.5 | F18: =IF(B18=" ","- ",SUM(I18*$I$4,L18*$L$4,O18*$O$4,R18*$R$4,U18*$U$4,X18*$X$4,AA18*$AA$4,AD18*$AD$4,AG18*$AG$4,AJ18*$AJ$4,AM18*$AM$4,AP18*$AP$4,AS18*$AS$4,AV18*$AV$4,AY18*$AY$4,BB18*$BB$4,BE18*$BE$4,BH18*$BH$4,BK18*$BK$4,BN18*$BN$4,BQ18*$BQ$4,BT18*$BT$4,BW18*$BW$4,BZ18*$BZ$4,CC18*$CC$4,CF18*$CF$4,CI18*$CI$4)) -> 59.2 | G18: =IF(B18=" ","- ",SUM(I18,L18,O18,R18,U18,X18,AA18,AD18,AG18,AJ18,AM18,AP18,AS18,AV18,AY18,BB18,BE18,BH18,BK18,BN18,BQ18,BT18,BW18,BZ18,CC18,CF18,CI18)) -> 4 | H18: =IF(B18=" ","- ",COUNT(I18,L18,O18,R18,U18,X18,AA18,AD18,AG18,AJ18,AM18,AP18,AS18,AV18,AY18,BB18,BE18,BH18,BK18,BN18,BQ18,BT18,BW18,BZ18,CC18,CF18,CI18)) -> 2 | I18: 2 | J18: 00:56:47 | K18: =IF(J18="","-",IF(RANK(J18,J$6:J$35,1)<11,(11-RANK(J18,J$6:J$35,1))*0.5,0)) -> 1 | N18: =IF(M18="","-",IF(RANK(M18,M$6:M$35,1)<11,(11-RANK(M18,M$6:M$35,1))*0.5,0)) -> - | Q18: =IF(P18="","-",IF(RANK(P18,P$6:P$35,1)<11,(11-RANK(P18,P$6:P$35,1))*0.5,0)) -> - | T18: =IF(S18="","-",IF(RANK(S18,S$6:S$35,1)<11,(11-RANK(S18,S$6:S$35,1))*0.5,0)) -> - | W18: =IF(V18="","-",IF(RANK(V18,V$6:V$35,1)<11,(11-RANK(V18,V$6:V$35,1))*0.5,0)) -> - | Z18: =IF(Y18="","-",IF(RANK(Y18,Y$6:Y$35,1)<11,(11-RANK(Y18,Y$6:Y$35,1))*0.5,0)) -> - | AC18: =IF(AB18="","-",IF(RANK(AB18,AB$6:AB$35,1)<11,(11-RANK(AB18,AB$6:AB$35,1))*0.5,0)) -> - | AF18: =IF(AE18="","-",IF(RANK(AE18,AE$6:AE$35,1)<11,(11-RANK(AE18,AE$6:AE$35,1))*0.5,0)) -> - | AI18: =IF(AH18="","-",IF(RANK(AH18,AH$6:AH$35,1)<11,(11-RANK(AH18,AH$6:AH$35,1))*0.5,0)) -> - | AL18: =IF(AK18="","-",IF(RANK(AK18,AK$6:AK$35,1)<11,(11-RANK(AK18,AK$6:AK$35,1))*0.5,0)) -> - | AO18: =IF(AN18="","-",IF(RANK(AN18,AN$6:AN$35,1)<11,(11-RANK(AN18,AN$6:AN$35,1))*0.5,0)) -> - | AR18: =IF(AQ18="","-",IF(RANK(AQ18,AQ$6:AQ$35,1)<11,(11-RANK(AQ18,AQ$6:AQ$35,1))*0.5,0)) -> - | AU18: =IF(AT18="","-",IF(RANK(AT18,AT$6:AT$35,1)<11,(11-RANK(AT18,AT$6:AT$35,1))*0.5,0)) -> - | AV18: 2 | AW18: 01:09:00 | AX18: =IF(AW18="","-",IF(RANK(AW18,AW$6:AW$35,1)<11,(11-RANK(AW18,AW$6:AW$35,1))*0.5,0)) -> 2.5 | BA18: =IF(AZ18="","-",IF(RANK(AZ18,AZ$6:AZ$35,1)<11,(11-RANK(AZ18,AZ$6:AZ$35,1))*0.5,0)) -> - | BD18: =IF(BC18="","-",IF(RANK(BC18,BC$6:BC$35,1)<11,(11-RANK(BC18,BC$6:BC$35,1))*0.5,0)) -> - | BG18: =IF(BF18="","-",IF(RANK(BF18,BF$6:BF$35,1)<11,(11-RANK(BF18,BF$6:BF$35,1))*0.5,0)) -> - | BJ18: =IF(BI18="","-",IF(RANK(BI18,BI$6:BI$35,1)<11,(11-RANK(BI18,BI$6:BI$35,1))*0.5,0)) -> - | BM18: =IF(BL18="","-",IF(RANK(BL18,BL$6:BL$35,1)<11,(11-RANK(BL18,BL$6:BL$35,1))*0.5,0)) -> - | BP18: =IF(BO18="","-",IF(RANK(BO18,BO$6:BO$35,1)<11,(11-RANK(BO18,BO$6:BO$35,1))*0.5,0)) -> - | BS18: =IF(BR18="","-",IF(RANK(BR18,BR$6:BR$35,1)<11,(11-RANK(BR18,BR$6:BR$35,1))*0.5,0)) -> - | BV18: =IF(BU18="","-",IF(RANK(BU18,BU$6:BU$35,1)<11,(11-RANK(BU18,BU$6:BU$35,1))*0.5,0)) -> - | BY18: =IF(BX18="","-",IF(RANK(BX18,BX$6:BX$35,1)<11,(11-RANK(BX18,BX$6:BX$35,1))*0.5,0)) -> - | CB18: =IF(CA18="","-",IF(RANK(CA18,CA$6:CA$35,1)<11,(11-RANK(CA18,CA$6:CA$35,1))*0.5,0)) -> - | CE18: =IF(CD18="","-",IF(RANK(CD18,CD$6:CD$35,1)<11,(11-RANK(CD18,CD$6:CD$35,1))*0.5,0)) -> - | CH18: =IF(CG18="","-",IF(RANK(CG18,CG$6:CG$35,1)<11,(11-RANK(CG18,CG$6:CG$35,1))*0.5,0)) -> - | CK18: =IF(CJ18="","-",IF(RANK(CJ18,CJ$6:CJ$35,1)<11,(11-RANK(CJ18,CJ$6:CJ$35,1))*0.5,0)) -> -
A19: 14 | B19: Malinský Jan | C19: =IF(B19=" ","- ",D19+E19) -> 7.7 | D19: =IF(B19=" ","- ",SUM(I19*$K$4,L19*$N$4,O19*$Q$4,R19*$T$4,U19*$W$4,X19*$Z$4,AA19*$AC$4,AD19*$AF$4,AG19*$AI$4,AJ19*$AL$4,AM19*$AO$4,AP19*$AR$4,AS19*$AU$4,AV19*$AX$4,AY19*$BA$4,BB19*$BD$4,BE19*$BG$4,BH19*$BJ$4,BK19*$BM$4,BN19*$BP$4,BQ19*$BS$4,BT19*$BV$4,BW19*$BY$4,BZ19*$CB$4,CC19*$CE$4,CF19*$CH$4,CI19*$CK$4)) -> 3.7 | E19: =IF(B19=" ","- ",SUM(K19,N19,Q19,T19,W19,Z19,AC19,AF19,AI19,AL19,AO19,AR19,AU19,AX19,BA19,BD19,BG19,BJ19,BM19,BP19,BS19,BV19,BY19,CB19,CE19,CH19,CK19)) -> 4 | F19: =IF(B19=" ","- ",SUM(I19*$I$4,L19*$L$4,O19*$O$4,R19*$R$4,U19*$U$4,X19*$X$4,AA19*$AA$4,AD19*$AD$4,AG19*$AG$4,AJ19*$AJ$4,AM19*$AM$4,AP19*$AP$4,AS19*$AS$4,AV19*$AV$4,AY19*$AY$4,BB19*$BB$4,BE19*$BE$4,BH19*$BH$4,BK19*$BK$4,BN19*$BN$4,BQ19*$BQ$4,BT19*$BT$4,BW19*$BW$4,BZ19*$BZ$4,CC19*$CC$4,CF19*$CF$4,CI19*$CI$4)) -> 26 | G19: =IF(B19=" ","- ",SUM(I19,L19,O19,R19,U19,X19,AA19,AD19,AG19,AJ19,AM19,AP19,AS19,AV19,AY19,BB19,BE19,BH19,BK19,BN19,BQ19,BT19,BW19,BZ19,CC19,CF19,CI19)) -> 1 | H19: =IF(B19=" ","- ",COUNT(I19,L19,O19,R19,U19,X19,AA19,AD19,AG19,AJ19,AM19,AP19,AS19,AV19,AY19,BB19,BE19,BH19,BK19,BN19,BQ19,BT19,BW19,BZ19,CC19,CF19,CI19)) -> 1 | K19: =IF(J19="","-",IF(RANK(J19,J$6:J$35,1)<11,(11-RANK(J19,J$6:J$35,1))*0.5,0)) -> - | N19: =IF(M19="","-",IF(RANK(M19,M$6:M$35,1)<11,(11-RANK(M19,M$6:M$35,1))*0.5,0)) -> - | Q19: =IF(P19="","-",IF(RANK(P19,P$6:P$35,1)<11,(11-RANK(P19,P$6:P$35,1))*0.5,0)) -> - | T19: =IF(S19="","-",IF(RANK(S19,S$6:S$35,1)<11,(11-RANK(S19,S$6:S$35,1))*0.5,0)) -> - | W19: =IF(V19="","-",IF(RANK(V19,V$6:V$35,1)<11,(11-RANK(V19,V$6:V$35,1))*0.5,0)) -> - | Z19: =IF(Y19="","-",IF(RANK(Y19,Y$6:Y$35,1)<11,(11-RANK(Y19,Y$6:Y$35,1))*0.5,0)) -> - | AC19: =IF(AB19="","-",IF(RANK(AB19,AB$6:AB$35,1)<11,(11-RANK(AB19,AB$6:AB$35,1))*0.5,0)) -> - | AF19: =IF(AE19="","-",IF(RANK(AE19,AE$6:AE$35,1)<11,(11-RANK(AE19,AE$6:AE$35,1))*0.5,0)) -> - | AG19: 1 | AH19: 01:57:00 | AI19: =IF(AH19="","-",IF(RANK(AH19,AH$6:AH$35,1)<11,(11-RANK(AH19,AH$6:AH$35,1))*0.5,0)) -> 4 | AL19: =IF(AK19="","-",IF(RANK(AK19,AK$6:AK$35,1)<11,(11-RANK(AK19,AK$6:AK$35,1))*0.5,0)) -> - | AO19: =IF(AN19="","-",IF(RANK(AN19,AN$6:AN$35,1)<11,(11-RANK(AN19,AN$6:AN$35,1))*0.5,0)) -> - | AR19: =IF(AQ19="","-",IF(RANK(AQ19,AQ$6:AQ$35,1)<11,(11-RANK(AQ19,AQ$6:AQ$35,1))*0.5,0)) -> - | AU19: =IF(AT19="","-",IF(RANK(AT19,AT$6:AT$35,1)<11,(11-RANK(AT19,AT$6:AT$35,1))*0.5,0)) -> - | AX19: =IF(AW19="","-",IF(RANK(AW19,AW$6:AW$35,1)<11,(11-RANK(AW19,AW$6:AW$35,1))*0.5,0)) -> - | BA19: =IF(AZ19="","-",IF(RANK(AZ19,AZ$6:AZ$35,1)<11,(11-RANK(AZ19,AZ$6:AZ$35,1))*0.5,0)) -> - | BD19: =IF(BC19="","-",IF(RANK(BC19,BC$6:BC$35,1)<11,(11-RANK(BC19,BC$6:BC$35,1))*0.5,0)) -> - | BG19: =IF(BF19="","-",IF(RANK(BF19,BF$6:BF$35,1)<11,(11-RANK(BF19,BF$6:BF$35,1))*0.5,0)) -> - | BJ19: =IF(BI19="","-",IF(RANK(BI19,BI$6:BI$35,1)<11,(11-RANK(BI19,BI$6:BI$35,1))*0.5,0)) -> - | BM19: =IF(BL19="","-",IF(RANK(BL19,BL$6:BL$35,1)<11,(11-RANK(BL19,BL$6:BL$35,1))*0.5,0)) -> - | BP19: =IF(BO19="","-",IF(RANK(BO19,BO$6:BO$35,1)<11,(11-RANK(BO19,BO$6:BO$35,1))*0.5,0)) -> - | BS19: =IF(BR19="","-",IF(RANK(BR19,BR$6:BR$35,1)<11,(11-RANK(BR19,BR$6:BR$35,1))*0.5,0)) -> - | BV19: =IF(BU19="","-",IF(RANK(BU19,BU$6:BU$35,1)<11,(11-RANK(BU19,BU$6:BU$35,1))*0.5,0)) -> - | BY19: =IF(BX19="","-",IF(RANK(BX19,BX$6:BX$35,1)<11,(11-RANK(BX19,BX$6:BX$35,1))*0.5,0)) -> - | CB19: =IF(CA19="","-",IF(RANK(CA19,CA$6:CA$35,1)<11,(11-RANK(CA19,CA$6:CA$35,1))*0.5,0)) -> - | CE19: =IF(CD19="","-",IF(RANK(CD19,CD$6:CD$35,1)<11,(11-RANK(CD19,CD$6:CD$35,1))*0.5,0)) -> - | CH19: =IF(CG19="","-",IF(RANK(CG19,CG$6:CG$35,1)<11,(11-RANK(CG19,CG$6:CG$35,1))*0.5,0)) -> - | CK19: =IF(CJ19="","-",IF(RANK(CJ19,CJ$6:CJ$35,1)<11,(11-RANK(CJ19,CJ$6:CJ$35,1))*0.5,0)) -> -
A20: 15 | B20: Kronovetr Hubert | C20: =IF(B20=" ","- ",D20+E20) -> 4.5 | D20: =IF(B20=" ","- ",SUM(I20*$K$4,L20*$N$4,O20*$Q$4,R20*$T$4,U20*$W$4,X20*$Z$4,AA20*$AC$4,AD20*$AF$4,AG20*$AI$4,AJ20*$AL$4,AM20*$AO$4,AP20*$AR$4,AS20*$AU$4,AV20*$AX$4,AY20*$BA$4,BB20*$BD$4,BE20*$BG$4,BH20*$BJ$4,BK20*$BM$4,BN20*$BP$4,BQ20*$BS$4,BT20*$BV$4,BW20*$BY$4,BZ20*$CB$4,CC20*$CE$4,CF20*$CH$4,CI20*$CK$4)) -> 3 | E20: =IF(B20=" ","- ",SUM(K20,N20,Q20,T20,W20,Z20,AC20,AF20,AI20,AL20,AO20,AR20,AU20,AX20,BA20,BD20,BG20,BJ20,BM20,BP20,BS20,BV20,BY20,CB20,CE20,CH20,CK20)) -> 1.5 | F20: =IF(B20=" ","- ",SUM(I20*$I$4,L20*$L$4,O20*$O$4,R20*$R$4,U20*$U$4,X20*$X$4,AA20*$AA$4,AD20*$AD$4,AG20*$AG$4,AJ20*$AJ$4,AM20*$AM$4,AP20*$AP$4,AS20*$AS$4,AV20*$AV$4,AY20*$AY$4,BB20*$BB$4,BE20*$BE$4,BH20*$BH$4,BK20*$BK$4,BN20*$BN$4,BQ20*$BQ$4,BT20*$BT$4,BW20*$BW$4,BZ20*$BZ$4,CC20*$CC$4,CF20*$CF$4,CI20*$CI$4)) -> 37.9 | G20: =IF(B20=" ","- ",SUM(I20,L20,O20,R20,U20,X20,AA20,AD20,AG20,AJ20,AM20,AP20,AS20,AV20,AY20,BB20,BE20,BH20,BK20,BN20,BQ20,BT20,BW20,BZ20,CC20,CF20,CI20)) -> 3 | H20: =IF(B20=" ","- ",COUNT(I20,L20,O20,R20,U20,X20,AA20,AD20,AG20,AJ20,AM20,AP20,AS20,AV20,AY20,BB20,BE20,BH20,BK20,BN20,BQ20,BT20,BW20,BZ20,CC20,CF20,CI20)) -> 2 | K20: =IF(J20="","-",IF(RANK(J20,J$6:J$35,1)<11,(11-RANK(J20,J$6:J$35,1))*0.5,0)) -> - | L20: 1 | M20: 00:40:00 | N20: =IF(M20="","-",IF(RANK(M20,M$6:M$35,1)<11,(11-RANK(M20,M$6:M$35,1))*0.5,0)) -> 0.5 | O20: 2 | P20: 00:39:28 | Q20: =IF(P20="","-",IF(RANK(P20,P$6:P$35,1)<11,(11-RANK(P20,P$6:P$35,1))*0.5,0)) -> 1 | T20: =IF(S20="","-",IF(RANK(S20,S$6:S$35,1)<11,(11-RANK(S20,S$6:S$35,1))*0.5,0)) -> - | W20: =IF(V20="","-",IF(RANK(V20,V$6:V$35,1)<11,(11-RANK(V20,V$6:V$35,1))*0.5,0)) -> - | Z20: =IF(Y20="","-",IF(RANK(Y20,Y$6:Y$35,1)<11,(11-RANK(Y20,Y$6:Y$35,1))*0.5,0)) -> - | AC20: =IF(AB20="","-",IF(RANK(AB20,AB$6:AB$35,1)<11,(11-RANK(AB20,AB$6:AB$35,1))*0.5,0)) -> - | AF20: =IF(AE20="","-",IF(RANK(AE20,AE$6:AE$35,1)<11,(11-RANK(AE20,AE$6:AE$35,1))*0.5,0)) -> - | AI20: =IF(AH20="","-",IF(RANK(AH20,AH$6:AH$35,1)<11,(11-RANK(AH20,AH$6:AH$35,1))*0.5,0)) -> - | AL20: =IF(AK20="","-",IF(RANK(AK20,AK$6:AK$35,1)<11,(11-RANK(AK20,AK$6:AK$35,1))*0.5,0)) -> - | AO20: =IF(AN20="","-",IF(RANK(AN20,AN$6:AN$35,1)<11,(11-RANK(AN20,AN$6:AN$35,1))*0.5,0)) -> - | AR20: =IF(AQ20="","-",IF(RANK(AQ20,AQ$6:AQ$35,1)<11,(11-RANK(AQ20,AQ$6:AQ$35,1))*0.5,0)) -> - | AU20: =IF(AT20="","-",IF(RANK(AT20,AT$6:AT$35,1)<11,(11-RANK(AT20,AT$6:AT$35,1))*0.5,0)) -> - | AX20: =IF(AW20="","-",IF(RANK(AW20,AW$6:AW$35,1)<11,(11-RANK(AW20,AW$6:AW$35,1))*0.5,0)) -> - | BA20: =IF(AZ20="","-",IF(RANK(AZ20,AZ$6:AZ$35,1)<11,(11-RANK(AZ20,AZ$6:AZ$35,1))*0.5,0)) -> - | BD20: =IF(BC20="","-",IF(RANK(BC20,BC$6:BC$35,1)<11,(11-RANK(BC20,BC$6:BC$35,1))*0.5,0)) -> - | BG20: =IF(BF20="","-",IF(RANK(BF20,BF$6:BF$35,1)<11,(11-RANK(BF20,BF$6:BF$35,1))*0.5,0)) -> - | BJ20: =IF(BI20="","-",IF(RANK(BI20,BI$6:BI$35,1)<11,(11-RANK(BI20,BI$6:BI$35,1))*0.5,0)) -> - | BM20: =IF(BL20="","-",IF(RANK(BL20,BL$6:BL$35,1)<11,(11-RANK(BL20,BL$6:BL$35,1))*0.5,0)) -> - | BP20: =IF(BO20="","-",IF(RANK(BO20,BO$6:BO$35,1)<11,(11-RANK(BO20,BO$6:BO$35,1))*0.5,0)) -> - | BS20: =IF(BR20="","-",IF(RANK(BR20,BR$6:BR$35,1)<11,(11-RANK(BR20,BR$6:BR$35,1))*0.5,0)) -> - | BV20: =IF(BU20="","-",IF(RANK(BU20,BU$6:BU$35,1)<11,(11-RANK(BU20,BU$6:BU$35,1))*0.5,0)) -> - | BY20: =IF(BX20="","-",IF(RANK(BX20,BX$6:BX$35,1)<11,(11-RANK(BX20,BX$6:BX$35,1))*0.5,0)) -> - | CB20: =IF(CA20="","-",IF(RANK(CA20,CA$6:CA$35,1)<11,(11-RANK(CA20,CA$6:CA$35,1))*0.5,0)) -> - | CE20: =IF(CD20="","-",IF(RANK(CD20,CD$6:CD$35,1)<11,(11-RANK(CD20,CD$6:CD$35,1))*0.5,0)) -> - | CH20: =IF(CG20="","-",IF(RANK(CG20,CG$6:CG$35,1)<11,(11-RANK(CG20,CG$6:CG$35,1))*0.5,0)) -> - | CK20: =IF(CJ20="","-",IF(RANK(CJ20,CJ$6:CJ$35,1)<11,(11-RANK(CJ20,CJ$6:CJ$35,1))*0.5,0)) -> -
A21: 16 | B21: Mužík Martin | C21: =IF(B21=" ","- ",D21+E21) -> 4.4 | D21: =IF(B21=" ","- ",SUM(I21*$K$4,L21*$N$4,O21*$Q$4,R21*$T$4,U21*$W$4,X21*$Z$4,AA21*$AC$4,AD21*$AF$4,AG21*$AI$4,AJ21*$AL$4,AM21*$AO$4,AP21*$AR$4,AS21*$AU$4,AV21*$AX$4,AY21*$BA$4,BB21*$BD$4,BE21*$BG$4,BH21*$BJ$4,BK21*$BM$4,BN21*$BP$4,BQ21*$BS$4,BT21*$BV$4,BW21*$BY$4,BZ21*$CB$4,CC21*$CE$4,CF21*$CH$4,CI21*$CK$4)) -> 1.9 | E21: =IF(B21=" ","- ",SUM(K21,N21,Q21,T21,W21,Z21,AC21,AF21,AI21,AL21,AO21,AR21,AU21,AX21,BA21,BD21,BG21,BJ21,BM21,BP21,BS21,BV21,BY21,CB21,CE21,CH21,CK21)) -> 2.5 | F21: =IF(B21=" ","- ",SUM(I21*$I$4,L21*$L$4,O21*$O$4,R21*$R$4,U21*$U$4,X21*$X$4,AA21*$AA$4,AD21*$AD$4,AG21*$AG$4,AJ21*$AJ$4,AM21*$AM$4,AP21*$AP$4,AS21*$AS$4,AV21*$AV$4,AY21*$AY$4,BB21*$BB$4,BE21*$BE$4,BH21*$BH$4,BK21*$BK$4,BN21*$BN$4,BQ21*$BQ$4,BT21*$BT$4,BW21*$BW$4,BZ21*$BZ$4,CC21*$CC$4,CF21*$CF$4,CI21*$CI$4)) -> 16.3 | G21: =IF(B21=" ","- ",SUM(I21,L21,O21,R21,U21,X21,AA21,AD21,AG21,AJ21,AM21,AP21,AS21,AV21,AY21,BB21,BE21,BH21,BK21,BN21,BQ21,BT21,BW21,BZ21,CC21,CF21,CI21)) -> 1 | H21: =IF(B21=" ","- ",COUNT(I21,L21,O21,R21,U21,X21,AA21,AD21,AG21,AJ21,AM21,AP21,AS21,AV21,AY21,BB21,BE21,BH21,BK21,BN21,BQ21,BT21,BW21,BZ21,CC21,CF21,CI21)) -> 1 | K21: =IF(J21="","-",IF(RANK(J21,J$6:J$35,1)<11,(11-RANK(J21,J$6:J$35,1))*0.5,0)) -> - | N21: =IF(M21="","-",IF(RANK(M21,M$6:M$35,1)<11,(11-RANK(M21,M$6:M$35,1))*0.5,0)) -> - | Q21: =IF(P21="","-",IF(RANK(P21,P$6:P$35,1)<11,(11-RANK(P21,P$6:P$35,1))*0.5,0)) -> - | T21: =IF(S21="","-",IF(RANK(S21,S$6:S$35,1)<11,(11-RANK(S21,S$6:S$35,1))*0.5,0)) -> - | W21: =IF(V21="","-",IF(RANK(V21,V$6:V$35,1)<11,(11-RANK(V21,V$6:V$35,1))*0.5,0)) -> - | Z21: =IF(Y21="","-",IF(RANK(Y21,Y$6:Y$35,1)<11,(11-RANK(Y21,Y$6:Y$35,1))*0.5,0)) -> - | AC21: =IF(AB21="","-",IF(RANK(AB21,AB$6:AB$35,1)<11,(11-RANK(AB21,AB$6:AB$35,1))*0.5,0)) -> - | AF21: =IF(AE21="","-",IF(RANK(AE21,AE$6:AE$35,1)<11,(11-RANK(AE21,AE$6:AE$35,1))*0.5,0)) -> - | AI21: =IF(AH21="","-",IF(RANK(AH21,AH$6:AH$35,1)<11,(11-RANK(AH21,AH$6:AH$35,1))*0.5,0)) -> - | AL21: =IF(AK21="","-",IF(RANK(AK21,AK$6:AK$35,1)<11,(11-RANK(AK21,AK$6:AK$35,1))*0.5,0)) -> - | AO21: =IF(AN21="","-",IF(RANK(AN21,AN$6:AN$35,1)<11,(11-RANK(AN21,AN$6:AN$35,1))*0.5,0)) -> - | AR21: =IF(AQ21="","-",IF(RANK(AQ21,AQ$6:AQ$35,1)<11,(11-RANK(AQ21,AQ$6:AQ$35,1))*0.5,0)) -> - | AU21: =IF(AT21="","-",IF(RANK(AT21,AT$6:AT$35,1)<11,(11-RANK(AT21,AT$6:AT$35,1))*0.5,0)) -> - | AX21: =IF(AW21="","-",IF(RANK(AW21,AW$6:AW$35,1)<11,(11-RANK(AW21,AW$6:AW$35,1))*0.5,0)) -> - | BA21: =IF(AZ21="","-",IF(RANK(AZ21,AZ$6:AZ$35,1)<11,(11-RANK(AZ21,AZ$6:AZ$35,1))*0.5,0)) -> - | BB21: 1 | BC21: 01:25:25 | BD21: =IF(BC21="","-",IF(RANK(BC21,BC$6:BC$35,1)<11,(11-RANK(BC21,BC$6:BC$35,1))*0.5,0)) -> 2.5 | BG21: =IF(BF21="","-",IF(RANK(BF21,BF$6:BF$35,1)<11,(11-RANK(BF21,BF$6:BF$35,1))*0.5,0)) -> - | BJ21: =IF(BI21="","-",IF(RANK(BI21,BI$6:BI$35,1)<11,(11-RANK(BI21,BI$6:BI$35,1))*0.5,0)) -> - | BM21: =IF(BL21="","-",IF(RANK(BL21,BL$6:BL$35,1)<11,(11-RANK(BL21,BL$6:BL$35,1))*0.5,0)) -> - | BP21: =IF(BO21="","-",IF(RANK(BO21,BO$6:BO$35,1)<11,(11-RANK(BO21,BO$6:BO$35,1))*0.5,0)) -> - | BS21: =IF(BR21="","-",IF(RANK(BR21,BR$6:BR$35,1)<11,(11-RANK(BR21,BR$6:BR$35,1))*0.5,0)) -> - | BV21: =IF(BU21="","-",IF(RANK(BU21,BU$6:BU$35,1)<11,(11-RANK(BU21,BU$6:BU$35,1))*0.5,0)) -> - | BY21: =IF(BX21="","-",IF(RANK(BX21,BX$6:BX$35,1)<11,(11-RANK(BX21,BX$6:BX$35,1))*0.5,0)) -> - | CB21: =IF(CA21="","-",IF(RANK(CA21,CA$6:CA$35,1)<11,(11-RANK(CA21,CA$6:CA$35,1))*0.5,0)) -> - | CE21: =IF(CD21="","-",IF(RANK(CD21,CD$6:CD$35,1)<11,(11-RANK(CD21,CD$6:CD$35,1))*0.5,0)) -> - | CH21: =IF(CG21="","-",IF(RANK(CG21,CG$6:CG$35,1)<11,(11-RANK(CG21,CG$6:CG$35,1))*0.5,0)) -> - | CK21: =IF(CJ21="","-",IF(RANK(CJ21,CJ$6:CJ$35,1)<11,(11-RANK(CJ21,CJ$6:CJ$35,1))*0.5,0)) -> -
A22: 17 | B22: Bartoš Viktor | C22: =IF(B22=" ","- ",D22+E22) -> 3 | D22: =IF(B22=" ","- ",SUM(I22*$K$4,L22*$N$4,O22*$Q$4,R22*$T$4,U22*$W$4,X22*$Z$4,AA22*$AC$4,AD22*$AF$4,AG22*$AI$4,AJ22*$AL$4,AM22*$AO$4,AP22*$AR$4,AS22*$AU$4,AV22*$AX$4,AY22*$BA$4,BB22*$BD$4,BE22*$BG$4,BH22*$BJ$4,BK22*$BM$4,BN22*$BP$4,BQ22*$BS$4,BT22*$BV$4,BW22*$BY$4,BZ22*$CB$4,CC22*$CE$4,CF22*$CH$4,CI22*$CK$4)) -> 3 | E22: =IF(B22=" ","- ",SUM(K22,N22,Q22,T22,W22,Z22,AC22,AF22,AI22,AL22,AO22,AR22,AU22,AX22,BA22,BD22,BG22,BJ22,BM22,BP22,BS22,BV22,BY22,CB22,CE22,CH22,CK22)) -> 0 | F22: =IF(B22=" ","- ",SUM(I22*$I$4,L22*$L$4,O22*$O$4,R22*$R$4,U22*$U$4,X22*$X$4,AA22*$AA$4,AD22*$AD$4,AG22*$AG$4,AJ22*$AJ$4,AM22*$AM$4,AP22*$AP$4,AS22*$AS$4,AV22*$AV$4,AY22*$AY$4,BB22*$BB$4,BE22*$BE$4,BH22*$BH$4,BK22*$BK$4,BN22*$BN$4,BQ22*$BQ$4,BT22*$BT$4,BW22*$BW$4,BZ22*$BZ$4,CC22*$CC$4,CF22*$CF$4,CI22*$CI$4)) -> 46.2 | G22: =IF(B22=" ","- ",SUM(I22,L22,O22,R22,U22,X22,AA22,AD22,AG22,AJ22,AM22,AP22,AS22,AV22,AY22,BB22,BE22,BH22,BK22,BN22,BQ22,BT22,BW22,BZ22,CC22,CF22,CI22)) -> 3 | H22: =IF(B22=" ","- ",COUNT(I22,L22,O22,R22,U22,X22,AA22,AD22,AG22,AJ22,AM22,AP22,AS22,AV22,AY22,BB22,BE22,BH22,BK22,BN22,BQ22,BT22,BW22,BZ22,CC22,CF22,CI22)) -> 1 | K22: =IF(J22="","-",IF(RANK(J22,J$6:J$35,1)<11,(11-RANK(J22,J$6:J$35,1))*0.5,0)) -> - | N22: =IF(M22="","-",IF(RANK(M22,M$6:M$35,1)<11,(11-RANK(M22,M$6:M$35,1))*0.5,0)) -> - | O22: 3 | P22: 00:45:22 | Q22: =IF(P22="","-",IF(RANK(P22,P$6:P$35,1)<11,(11-RANK(P22,P$6:P$35,1))*0.5,0)) -> 0 | T22: =IF(S22="","-",IF(RANK(S22,S$6:S$35,1)<11,(11-RANK(S22,S$6:S$35,1))*0.5,0)) -> - | W22: =IF(V22="","-",IF(RANK(V22,V$6:V$35,1)<11,(11-RANK(V22,V$6:V$35,1))*0.5,0)) -> - | Z22: =IF(Y22="","-",IF(RANK(Y22,Y$6:Y$35,1)<11,(11-RANK(Y22,Y$6:Y$35,1))*0.5,0)) -> - | AC22: =IF(AB22="","-",IF(RANK(AB22,AB$6:AB$35,1)<11,(11-RANK(AB22,AB$6:AB$35,1))*0.5,0)) -> - | AF22: =IF(AE22="","-",IF(RANK(AE22,AE$6:AE$35,1)<11,(11-RANK(AE22,AE$6:AE$35,1))*0.5,0)) -> - | AI22: =IF(AH22="","-",IF(RANK(AH22,AH$6:AH$35,1)<11,(11-RANK(AH22,AH$6:AH$35,1))*0.5,0)) -> - | AL22: =IF(AK22="","-",IF(RANK(AK22,AK$6:AK$35,1)<11,(11-RANK(AK22,AK$6:AK$35,1))*0.5,0)) -> - | AO22: =IF(AN22="","-",IF(RANK(AN22,AN$6:AN$35,1)<11,(11-RANK(AN22,AN$6:AN$35,1))*0.5,0)) -> - | AR22: =IF(AQ22="","-",IF(RANK(AQ22,AQ$6:AQ$35,1)<11,(11-RANK(AQ22,AQ$6:AQ$35,1))*0.5,0)) -> - | AU22: =IF(AT22="","-",IF(RANK(AT22,AT$6:AT$35,1)<11,(11-RANK(AT22,AT$6:AT$35,1))*0.5,0)) -> - | AX22: =IF(AW22="","-",IF(RANK(AW22,AW$6:AW$35,1)<11,(11-RANK(AW22,AW$6:AW$35,1))*0.5,0)) -> - | BA22: =IF(AZ22="","-",IF(RANK(AZ22,AZ$6:AZ$35,1)<11,(11-RANK(AZ22,AZ$6:AZ$35,1))*0.5,0)) -> - | BD22: =IF(BC22="","-",IF(RANK(BC22,BC$6:BC$35,1)<11,(11-RANK(BC22,BC$6:BC$35,1))*0.5,0)) -> - | BG22: =IF(BF22="","-",IF(RANK(BF22,BF$6:BF$35,1)<11,(11-RANK(BF22,BF$6:BF$35,1))*0.5,0)) -> - | BJ22: =IF(BI22="","-",IF(RANK(BI22,BI$6:BI$35,1)<11,(11-RANK(BI22,BI$6:BI$35,1))*0.5,0)) -> - | BM22: =IF(BL22="","-",IF(RANK(BL22,BL$6:BL$35,1)<11,(11-RANK(BL22,BL$6:BL$35,1))*0.5,0)) -> - | BP22: =IF(BO22="","-",IF(RANK(BO22,BO$6:BO$35,1)<11,(11-RANK(BO22,BO$6:BO$35,1))*0.5,0)) -> - | BS22: =IF(BR22="","-",IF(RANK(BR22,BR$6:BR$35,1)<11,(11-RANK(BR22,BR$6:BR$35,1))*0.5,0)) -> - | BV22: =IF(BU22="","-",IF(RANK(BU22,BU$6:BU$35,1)<11,(11-RANK(BU22,BU$6:BU$35,1))*0.5,0)) -> - | BY22: =IF(BX22="","-",IF(RANK(BX22,BX$6:BX$35,1)<11,(11-RANK(BX22,BX$6:BX$35,1))*0.5,0)) -> - | CB22: =IF(CA22="","-",IF(RANK(CA22,CA$6:CA$35,1)<11,(11-RANK(CA22,CA$6:CA$35,1))*0.5,0)) -> - | CE22: =IF(CD22="","-",IF(RANK(CD22,CD$6:CD$35,1)<11,(11-RANK(CD22,CD$6:CD$35,1))*0.5,0)) -> - | CH22: =IF(CG22="","-",IF(RANK(CG22,CG$6:CG$35,1)<11,(11-RANK(CG22,CG$6:CG$35,1))*0.5,0)) -> - | CK22: =IF(CJ22="","-",IF(RANK(CJ22,CJ$6:CJ$35,1)<11,(11-RANK(CJ22,CJ$6:CJ$35,1))*0.5,0)) -> -
A23: 18 | B23: Friede Jiří | C23: =IF(B23=" ","- ",D23+E23) -> 3 | D23: =IF(B23=" ","- ",SUM(I23*$K$4,L23*$N$4,O23*$Q$4,R23*$T$4,U23*$W$4,X23*$Z$4,AA23*$AC$4,AD23*$AF$4,AG23*$AI$4,AJ23*$AL$4,AM23*$AO$4,AP23*$AR$4,AS23*$AU$4,AV23*$AX$4,AY23*$BA$4,BB23*$BD$4,BE23*$BG$4,BH23*$BJ$4,BK23*$BM$4,BN23*$BP$4,BQ23*$BS$4,BT23*$BV$4,BW23*$BY$4,BZ23*$CB$4,CC23*$CE$4,CF23*$CH$4,CI23*$CK$4)) -> 1 | E23: =IF(B23=" ","- ",SUM(K23,N23,Q23,T23,W23,Z23,AC23,AF23,AI23,AL23,AO23,AR23,AU23,AX23,BA23,BD23,BG23,BJ23,BM23,BP23,BS23,BV23,BY23,CB23,CE23,CH23,CK23)) -> 2 | F23: =IF(B23=" ","- ",SUM(I23*$I$4,L23*$L$4,O23*$O$4,R23*$R$4,U23*$U$4,X23*$X$4,AA23*$AA$4,AD23*$AD$4,AG23*$AG$4,AJ23*$AJ$4,AM23*$AM$4,AP23*$AP$4,AS23*$AS$4,AV23*$AV$4,AY23*$AY$4,BB23*$BB$4,BE23*$BE$4,BH23*$BH$4,BK23*$BK$4,BN23*$BN$4,BQ23*$BQ$4,BT23*$BT$4,BW23*$BW$4,BZ23*$BZ$4,CC23*$CC$4,CF23*$CF$4,CI23*$CI$4)) -> 15.4 | G23: =IF(B23=" ","- ",SUM(I23,L23,O23,R23,U23,X23,AA23,AD23,AG23,AJ23,AM23,AP23,AS23,AV23,AY23,BB23,BE23,BH23,BK23,BN23,BQ23,BT23,BW23,BZ23,CC23,CF23,CI23)) -> 1 | H23: =IF(B23=" ","- ",COUNT(I23,L23,O23,R23,U23,X23,AA23,AD23,AG23,AJ23,AM23,AP23,AS23,AV23,AY23,BB23,BE23,BH23,BK23,BN23,BQ23,BT23,BW23,BZ23,CC23,CF23,CI23)) -> 1 | K23: =IF(J23="","-",IF(RANK(J23,J$6:J$35,1)<11,(11-RANK(J23,J$6:J$35,1))*0.5,0)) -> - | N23: =IF(M23="","-",IF(RANK(M23,M$6:M$35,1)<11,(11-RANK(M23,M$6:M$35,1))*0.5,0)) -> - | O23: 1 | P23: 00:31:59 | Q23: =IF(P23="","-",IF(RANK(P23,P$6:P$35,1)<11,(11-RANK(P23,P$6:P$35,1))*0.5,0)) -> 2 | T23: =IF(S23="","-",IF(RANK(S23,S$6:S$35,1)<11,(11-RANK(S23,S$6:S$35,1))*0.5,0)) -> - | W23: =IF(V23="","-",IF(RANK(V23,V$6:V$35,1)<11,(11-RANK(V23,V$6:V$35,1))*0.5,0)) -> - | Z23: =IF(Y23="","-",IF(RANK(Y23,Y$6:Y$35,1)<11,(11-RANK(Y23,Y$6:Y$35,1))*0.5,0)) -> - | AC23: =IF(AB23="","-",IF(RANK(AB23,AB$6:AB$35,1)<11,(11-RANK(AB23,AB$6:AB$35,1))*0.5,0)) -> - | AF23: =IF(AE23="","-",IF(RANK(AE23,AE$6:AE$35,1)<11,(11-RANK(AE23,AE$6:AE$35,1))*0.5,0)) -> - | AI23: =IF(AH23="","-",IF(RANK(AH23,AH$6:AH$35,1)<11,(11-RANK(AH23,AH$6:AH$35,1))*0.5,0)) -> - | AL23: =IF(AK23="","-",IF(RANK(AK23,AK$6:AK$35,1)<11,(11-RANK(AK23,AK$6:AK$35,1))*0.5,0)) -> - | AO23: =IF(AN23="","-",IF(RANK(AN23,AN$6:AN$35,1)<11,(11-RANK(AN23,AN$6:AN$35,1))*0.5,0)) -> - | AR23: =IF(AQ23="","-",IF(RANK(AQ23,AQ$6:AQ$35,1)<11,(11-RANK(AQ23,AQ$6:AQ$35,1))*0.5,0)) -> - | AU23: =IF(AT23="","-",IF(RANK(AT23,AT$6:AT$35,1)<11,(11-RANK(AT23,AT$6:AT$35,1))*0.5,0)) -> - | AX23: =IF(AW23="","-",IF(RANK(AW23,AW$6:AW$35,1)<11,(11-RANK(AW23,AW$6:AW$35,1))*0.5,0)) -> - | BA23: =IF(AZ23="","-",IF(RANK(AZ23,AZ$6:AZ$35,1)<11,(11-RANK(AZ23,AZ$6:AZ$35,1))*0.5,0)) -> - | BD23: =IF(BC23="","-",IF(RANK(BC23,BC$6:BC$35,1)<11,(11-RANK(BC23,BC$6:BC$35,1))*0.5,0)) -> - | BG23: =IF(BF23="","-",IF(RANK(BF23,BF$6:BF$35,1)<11,(11-RANK(BF23,BF$6:BF$35,1))*0.5,0)) -> - | BJ23: =IF(BI23="","-",IF(RANK(BI23,BI$6:BI$35,1)<11,(11-RANK(BI23,BI$6:BI$35,1))*0.5,0)) -> - | BM23: =IF(BL23="","-",IF(RANK(BL23,BL$6:BL$35,1)<11,(11-RANK(BL23,BL$6:BL$35,1))*0.5,0)) -> - | BP23: =IF(BO23="","-",IF(RANK(BO23,BO$6:BO$35,1)<11,(11-RANK(BO23,BO$6:BO$35,1))*0.5,0)) -> - | BS23: =IF(BR23="","-",IF(RANK(BR23,BR$6:BR$35,1)<11,(11-RANK(BR23,BR$6:BR$35,1))*0.5,0)) -> - | BV23: =IF(BU23="","-",IF(RANK(BU23,BU$6:BU$35,1)<11,(11-RANK(BU23,BU$6:BU$35,1))*0.5,0)) -> - | BY23: =IF(BX23="","-",IF(RANK(BX23,BX$6:BX$35,1)<11,(11-RANK(BX23,BX$6:BX$35,1))*0.5,0)) -> - | CB23: =IF(CA23="","-",IF(RANK(CA23,CA$6:CA$35,1)<11,(11-RANK(CA23,CA$6:CA$35,1))*0.5,0)) -> - | CE23: =IF(CD23="","-",IF(RANK(CD23,CD$6:CD$35,1)<11,(11-RANK(CD23,CD$6:CD$35,1))*0.5,0)) -> - | CH23: =IF(CG23="","-",IF(RANK(CG23,CG$6:CG$35,1)<11,(11-RANK(CG23,CG$6:CG$35,1))*0.5,0)) -> - | CK23: =IF(CJ23="","-",IF(RANK(CJ23,CJ$6:CJ$35,1)<11,(11-RANK(CJ23,CJ$6:CJ$35,1))*0.5,0)) -> -
A24: 19 | B24: Serbousková Pavlína | C24: =IF(B24=" ","- ",D24+E24) -> 1 | D24: =IF(B24=" ","- ",SUM(I24*$K$4,L24*$N$4,O24*$Q$4,R24*$T$4,U24*$W$4,X24*$Z$4,AA24*$AC$4,AD24*$AF$4,AG24*$AI$4,AJ24*$AL$4,AM24*$AO$4,AP24*$AR$4,AS24*$AU$4,AV24*$AX$4,AY24*$BA$4,BB24*$BD$4,BE24*$BG$4,BH24*$BJ$4,BK24*$BM$4,BN24*$BP$4,BQ24*$BS$4,BT24*$BV$4,BW24*$BY$4,BZ24*$CB$4,CC24*$CE$4,CF24*$CH$4,CI24*$CK$4)) -> 1 | E24: =IF(B24=" ","- ",SUM(K24,N24,Q24,T24,W24,Z24,AC24,AF24,AI24,AL24,AO24,AR24,AU24,AX24,BA24,BD24,BG24,BJ24,BM24,BP24,BS24,BV24,BY24,CB24,CE24,CH24,CK24)) -> 0 | F24: =IF(B24=" ","- ",SUM(I24*$I$4,L24*$L$4,O24*$O$4,R24*$R$4,U24*$U$4,X24*$X$4,AA24*$AA$4,AD24*$AD$4,AG24*$AG$4,AJ24*$AJ$4,AM24*$AM$4,AP24*$AP$4,AS24*$AS$4,AV24*$AV$4,AY24*$AY$4,BB24*$BB$4,BE24*$BE$4,BH24*$BH$4,BK24*$BK$4,BN24*$BN$4,BQ24*$BQ$4,BT24*$BT$4,BW24*$BW$4,BZ24*$BZ$4,CC24*$CC$4,CF24*$CF$4,CI24*$CI$4)) -> 15.4 | G24: =IF(B24=" ","- ",SUM(I24,L24,O24,R24,U24,X24,AA24,AD24,AG24,AJ24,AM24,AP24,AS24,AV24,AY24,BB24,BE24,BH24,BK24,BN24,BQ24,BT24,BW24,BZ24,CC24,CF24,CI24)) -> 1 | H24: =IF(B24=" ","- ",COUNT(I24,L24,O24,R24,U24,X24,AA24,AD24,AG24,AJ24,AM24,AP24,AS24,AV24,AY24,BB24,BE24,BH24,BK24,BN24,BQ24,BT24,BW24,BZ24,CC24,CF24,CI24)) -> 1 | K24: =IF(J24="","-",IF(RANK(J24,J$6:J$35,1)<11,(11-RANK(J24,J$6:J$35,1))*0.5,0)) -> - | N24: =IF(M24="","-",IF(RANK(M24,M$6:M$35,1)<11,(11-RANK(M24,M$6:M$35,1))*0.5,0)) -> - | O24: 1 | P24: 00:49:48 | Q24: =IF(P24="","-",IF(RANK(P24,P$6:P$35,1)<11,(11-RANK(P24,P$6:P$35,1))*0.5,0)) -> 0 | T24: =IF(S24="","-",IF(RANK(S24,S$6:S$35,1)<11,(11-RANK(S24,S$6:S$35,1))*0.5,0)) -> - | W24: =IF(V24="","-",IF(RANK(V24,V$6:V$35,1)<11,(11-RANK(V24,V$6:V$35,1))*0.5,0)) -> - | Z24: =IF(Y24="","-",IF(RANK(Y24,Y$6:Y$35,1)<11,(11-RANK(Y24,Y$6:Y$35,1))*0.5,0)) -> - | AC24: =IF(AB24="","-",IF(RANK(AB24,AB$6:AB$35,1)<11,(11-RANK(AB24,AB$6:AB$35,1))*0.5,0)) -> - | AF24: =IF(AE24="","-",IF(RANK(AE24,AE$6:AE$35,1)<11,(11-RANK(AE24,AE$6:AE$35,1))*0.5,0)) -> - | AI24: =IF(AH24="","-",IF(RANK(AH24,AH$6:AH$35,1)<11,(11-RANK(AH24,AH$6:AH$35,1))*0.5,0)) -> - | AL24: =IF(AK24="","-",IF(RANK(AK24,AK$6:AK$35,1)<11,(11-RANK(AK24,AK$6:AK$35,1))*0.5,0)) -> - | AO24: =IF(AN24="","-",IF(RANK(AN24,AN$6:AN$35,1)<11,(11-RANK(AN24,AN$6:AN$35,1))*0.5,0)) -> - | AR24: =IF(AQ24="","-",IF(RANK(AQ24,AQ$6:AQ$35,1)<11,(11-RANK(AQ24,AQ$6:AQ$35,1))*0.5,0)) -> - | AU24: =IF(AT24="","-",IF(RANK(AT24,AT$6:AT$35,1)<11,(11-RANK(AT24,AT$6:AT$35,1))*0.5,0)) -> - | AX24: =IF(AW24="","-",IF(RANK(AW24,AW$6:AW$35,1)<11,(11-RANK(AW24,AW$6:AW$35,1))*0.5,0)) -> - | BA24: =IF(AZ24="","-",IF(RANK(AZ24,AZ$6:AZ$35,1)<11,(11-RANK(AZ24,AZ$6:AZ$35,1))*0.5,0)) -> - | BD24: =IF(BC24="","-",IF(RANK(BC24,BC$6:BC$35,1)<11,(11-RANK(BC24,BC$6:BC$35,1))*0.5,0)) -> - | BG24: =IF(BF24="","-",IF(RANK(BF24,BF$6:BF$35,1)<11,(11-RANK(BF24,BF$6:BF$35,1))*0.5,0)) -> - | BJ24: =IF(BI24="","-",IF(RANK(BI24,BI$6:BI$35,1)<11,(11-RANK(BI24,BI$6:BI$35,1))*0.5,0)) -> - | BM24: =IF(BL24="","-",IF(RANK(BL24,BL$6:BL$35,1)<11,(11-RANK(BL24,BL$6:BL$35,1))*0.5,0)) -> - | BP24: =IF(BO24="","-",IF(RANK(BO24,BO$6:BO$35,1)<11,(11-RANK(BO24,BO$6:BO$35,1))*0.5,0)) -> - | BS24: =IF(BR24="","-",IF(RANK(BR24,BR$6:BR$35,1)<11,(11-RANK(BR24,BR$6:BR$35,1))*0.5,0)) -> - | BV24: =IF(BU24="","-",IF(RANK(BU24,BU$6:BU$35,1)<11,(11-RANK(BU24,BU$6:BU$35,1))*0.5,0)) -> - | BY24: =IF(BX24="","-",IF(RANK(BX24,BX$6:BX$35,1)<11,(11-RANK(BX24,BX$6:BX$35,1))*0.5,0)) -> - | CB24: =IF(CA24="","-",IF(RANK(CA24,CA$6:CA$35,1)<11,(11-RANK(CA24,CA$6:CA$35,1))*0.5,0)) -> - | CE24: =IF(CD24="","-",IF(RANK(CD24,CD$6:CD$35,1)<11,(11-RANK(CD24,CD$6:CD$35,1))*0.5,0)) -> - | CH24: =IF(CG24="","-",IF(RANK(CG24,CG$6:CG$35,1)<11,(11-RANK(CG24,CG$6:CG$35,1))*0.5,0)) -> - | CK24: =IF(CJ24="","-",IF(RANK(CJ24,CJ$6:CJ$35,1)<11,(11-RANK(CJ24,CJ$6:CJ$35,1))*0.5,0)) -> -
A25: 20 | B25: Vávra Tomáš | C25: =IF(B25=" ","- ",D25+E25) -> 1 | D25: =IF(B25=" ","- ",SUM(I25*$K$4,L25*$N$4,O25*$Q$4,R25*$T$4,U25*$W$4,X25*$Z$4,AA25*$AC$4,AD25*$AF$4,AG25*$AI$4,AJ25*$AL$4,AM25*$AO$4,AP25*$AR$4,AS25*$AU$4,AV25*$AX$4,AY25*$BA$4,BB25*$BD$4,BE25*$BG$4,BH25*$BJ$4,BK25*$BM$4,BN25*$BP$4,BQ25*$BS$4,BT25*$BV$4,BW25*$BY$4,BZ25*$CB$4,CC25*$CE$4,CF25*$CH$4,CI25*$CK$4)) -> 1 | E25: =IF(B25=" ","- ",SUM(K25,N25,Q25,T25,W25,Z25,AC25,AF25,AI25,AL25,AO25,AR25,AU25,AX25,BA25,BD25,BG25,BJ25,BM25,BP25,BS25,BV25,BY25,CB25,CE25,CH25,CK25)) -> 0 | F25: =IF(B25=" ","- ",SUM(I25*$I$4,L25*$L$4,O25*$O$4,R25*$R$4,U25*$U$4,X25*$X$4,AA25*$AA$4,AD25*$AD$4,AG25*$AG$4,AJ25*$AJ$4,AM25*$AM$4,AP25*$AP$4,AS25*$AS$4,AV25*$AV$4,AY25*$AY$4,BB25*$BB$4,BE25*$BE$4,BH25*$BH$4,BK25*$BK$4,BN25*$BN$4,BQ25*$BQ$4,BT25*$BT$4,BW25*$BW$4,BZ25*$BZ$4,CC25*$CC$4,CF25*$CF$4,CI25*$CI$4)) -> 7.1 | G25: =IF(B25=" ","- ",SUM(I25,L25,O25,R25,U25,X25,AA25,AD25,AG25,AJ25,AM25,AP25,AS25,AV25,AY25,BB25,BE25,BH25,BK25,BN25,BQ25,BT25,BW25,BZ25,CC25,CF25,CI25)) -> 1 | H25: =IF(B25=" ","- ",COUNT(I25,L25,O25,R25,U25,X25,AA25,AD25,AG25,AJ25,AM25,AP25,AS25,AV25,AY25,BB25,BE25,BH25,BK25,BN25,BQ25,BT25,BW25,BZ25,CC25,CF25,CI25)) -> 1 | K25: =IF(J25="","-",IF(RANK(J25,J$6:J$35,1)<11,(11-RANK(J25,J$6:J$35,1))*0.5,0)) -> - | L25: 1 | M25: 00:43:00 | N25: =IF(M25="","-",IF(RANK(M25,M$6:M$35,1)<11,(11-RANK(M25,M$6:M$35,1))*0.5,0)) -> 0 | Q25: =IF(P25="","-",IF(RANK(P25,P$6:P$35,1)<11,(11-RANK(P25,P$6:P$35,1))*0.5,0)) -> - | T25: =IF(S25="","-",IF(RANK(S25,S$6:S$35,1)<11,(11-RANK(S25,S$6:S$35,1))*0.5,0)) -> - | W25: =IF(V25="","-",IF(RANK(V25,V$6:V$35,1)<11,(11-RANK(V25,V$6:V$35,1))*0.5,0)) -> - | Z25: =IF(Y25="","-",IF(RANK(Y25,Y$6:Y$35,1)<11,(11-RANK(Y25,Y$6:Y$35,1))*0.5,0)) -> - | AC25: =IF(AB25="","-",IF(RANK(AB25,AB$6:AB$35,1)<11,(11-RANK(AB25,AB$6:AB$35,1))*0.5,0)) -> - | AF25: =IF(AE25="","-",IF(RANK(AE25,AE$6:AE$35,1)<11,(11-RANK(AE25,AE$6:AE$35,1))*0.5,0)) -> - | AI25: =IF(AH25="","-",IF(RANK(AH25,AH$6:AH$35,1)<11,(11-RANK(AH25,AH$6:AH$35,1))*0.5,0)) -> - | AL25: =IF(AK25="","-",IF(RANK(AK25,AK$6:AK$35,1)<11,(11-RANK(AK25,AK$6:AK$35,1))*0.5,0)) -> - | AO25: =IF(AN25="","-",IF(RANK(AN25,AN$6:AN$35,1)<11,(11-RANK(AN25,AN$6:AN$35,1))*0.5,0)) -> - | AR25: =IF(AQ25="","-",IF(RANK(AQ25,AQ$6:AQ$35,1)<11,(11-RANK(AQ25,AQ$6:AQ$35,1))*0.5,0)) -> - | AU25: =IF(AT25="","-",IF(RANK(AT25,AT$6:AT$35,1)<11,(11-RANK(AT25,AT$6:AT$35,1))*0.5,0)) -> - | AX25: =IF(AW25="","-",IF(RANK(AW25,AW$6:AW$35,1)<11,(11-RANK(AW25,AW$6:AW$35,1))*0.5,0)) -> - | BA25: =IF(AZ25="","-",IF(RANK(AZ25,AZ$6:AZ$35,1)<11,(11-RANK(AZ25,AZ$6:AZ$35,1))*0.5,0)) -> - | BD25: =IF(BC25="","-",IF(RANK(BC25,BC$6:BC$35,1)<11,(11-RANK(BC25,BC$6:BC$35,1))*0.5,0)) -> - | BG25: =IF(BF25="","-",IF(RANK(BF25,BF$6:BF$35,1)<11,(11-RANK(BF25,BF$6:BF$35,1))*0.5,0)) -> - | BJ25: =IF(BI25="","-",IF(RANK(BI25,BI$6:BI$35,1)<11,(11-RANK(BI25,BI$6:BI$35,1))*0.5,0)) -> - | BM25: =IF(BL25="","-",IF(RANK(BL25,BL$6:BL$35,1)<11,(11-RANK(BL25,BL$6:BL$35,1))*0.5,0)) -> - | BP25: =IF(BO25="","-",IF(RANK(BO25,BO$6:BO$35,1)<11,(11-RANK(BO25,BO$6:BO$35,1))*0.5,0)) -> - | BS25: =IF(BR25="","-",IF(RANK(BR25,BR$6:BR$35,1)<11,(11-RANK(BR25,BR$6:BR$35,1))*0.5,0)) -> - | BV25: =IF(BU25="","-",IF(RANK(BU25,BU$6:BU$35,1)<11,(11-RANK(BU25,BU$6:BU$35,1))*0.5,0)) -> - | BY25: =IF(BX25="","-",IF(RANK(BX25,BX$6:BX$35,1)<11,(11-RANK(BX25,BX$6:BX$35,1))*0.5,0)) -> - | CB25: =IF(CA25="","-",IF(RANK(CA25,CA$6:CA$35,1)<11,(11-RANK(CA25,CA$6:CA$35,1))*0.5,0)) -> - | CE25: =IF(CD25="","-",IF(RANK(CD25,CD$6:CD$35,1)<11,(11-RANK(CD25,CD$6:CD$35,1))*0.5,0)) -> - | CH25: =IF(CG25="","-",IF(RANK(CG25,CG$6:CG$35,1)<11,(11-RANK(CG25,CG$6:CG$35,1))*0.5,0)) -> - | CK25: =IF(CJ25="","-",IF(RANK(CJ25,CJ$6:CJ$35,1)<11,(11-RANK(CJ25,CJ$6:CJ$35,1))*0.5,0)) -> -
C26: =IF(B26=" ","- ",D26+E26) -> - | D26: =IF(B26=" ","- ",SUM(I26*$K$4,L26*$N$4,O26*$Q$4,R26*$T$4,U26*$W$4,X26*$Z$4,AA26*$AC$4,AD26*$AF$4,AG26*$AI$4,AJ26*$AL$4,AM26*$AO$4,AP26*$AR$4,AS26*$AU$4,AV26*$AX$4,AY26*$BA$4,BB26*$BD$4,BE26*$BG$4,BH26*$BJ$4,BK26*$BM$4,BN26*$BP$4,BQ26*$BS$4,BT26*$BV$4,BW26*$BY$4,BZ26*$CB$4,CC26*$CE$4,CF26*$CH$4,CI26*$CK$4)) -> - | E26: =IF(B26=" ","- ",SUM(K26,N26,Q26,T26,W26,Z26,AC26,AF26,AI26,AL26,AO26,AR26,AU26,AX26,BA26,BD26,BG26,BJ26,BM26,BP26,BS26,BV26,BY26,CB26,CE26,CH26,CK26)) -> - | F26: =IF(B26=" ","- ",SUM(I26*$I$4,L26*$L$4,O26*$O$4,R26*$R$4,U26*$U$4,X26*$X$4,AA26*$AA$4,AD26*$AD$4,AG26*$AG$4,AJ26*$AJ$4,AM26*$AM$4,AP26*$AP$4,AS26*$AS$4,AV26*$AV$4,AY26*$AY$4,BB26*$BB$4,BE26*$BE$4,BH26*$BH$4,BK26*$BK$4,BN26*$BN$4,BQ26*$BQ$4,BT26*$BT$4,BW26*$BW$4,BZ26*$BZ$4,CC26*$CC$4,CF26*$CF$4,CI26*$CI$4)) -> - | G26: =IF(B26=" ","- ",SUM(I26,L26,O26,R26,U26,X26,AA26,AD26,AG26,AJ26,AM26,AP26,AS26,AV26,AY26,BB26,BE26,BH26,BK26,BN26,BQ26,BT26,BW26,BZ26,CC26,CF26,CI26)) -> - | H26: =IF(B26=" ","- ",COUNT(I26,L26,O26,R26,U26,X26,AA26,AD26,AG26,AJ26,AM26,AP26,AS26,AV26,AY26,BB26,BE26,BH26,BK26,BN26,BQ26,BT26,BW26,BZ26,CC26,CF26,CI26)) -> - | K26: =IF(J26="","-",IF(RANK(J26,J$6:J$35,1)<11,(11-RANK(J26,J$6:J$35,1))*0.5,0)) -> - | N26: =IF(M26="","-",IF(RANK(M26,M$6:M$35,1)<11,(11-RANK(M26,M$6:M$35,1))*0.5,0)) -> - | Q26: =IF(P26="","-",IF(RANK(P26,P$6:P$35,1)<11,(11-RANK(P26,P$6:P$35,1))*0.5,0)) -> - | T26: =IF(S26="","-",IF(RANK(S26,S$6:S$35,1)<11,(11-RANK(S26,S$6:S$35,1))*0.5,0)) -> - | W26: =IF(V26="","-",IF(RANK(V26,V$6:V$35,1)<11,(11-RANK(V26,V$6:V$35,1))*0.5,0)) -> - | Z26: =IF(Y26="","-",IF(RANK(Y26,Y$6:Y$35,1)<11,(11-RANK(Y26,Y$6:Y$35,1))*0.5,0)) -> - | AC26: =IF(AB26="","-",IF(RANK(AB26,AB$6:AB$35,1)<11,(11-RANK(AB26,AB$6:AB$35,1))*0.5,0)) -> - | AF26: =IF(AE26="","-",IF(RANK(AE26,AE$6:AE$35,1)<11,(11-RANK(AE26,AE$6:AE$35,1))*0.5,0)) -> - | AI26: =IF(AH26="","-",IF(RANK(AH26,AH$6:AH$35,1)<11,(11-RANK(AH26,AH$6:AH$35,1))*0.5,0)) -> - | AL26: =IF(AK26="","-",IF(RANK(AK26,AK$6:AK$35,1)<11,(11-RANK(AK26,AK$6:AK$35,1))*0.5,0)) -> - | AO26: =IF(AN26="","-",IF(RANK(AN26,AN$6:AN$35,1)<11,(11-RANK(AN26,AN$6:AN$35,1))*0.5,0)) -> - | AR26: =IF(AQ26="","-",IF(RANK(AQ26,AQ$6:AQ$35,1)<11,(11-RANK(AQ26,AQ$6:AQ$35,1))*0.5,0)) -> - | AU26: =IF(AT26="","-",IF(RANK(AT26,AT$6:AT$35,1)<11,(11-RANK(AT26,AT$6:AT$35,1))*0.5,0)) -> - | AX26: =IF(AW26="","-",IF(RANK(AW26,AW$6:AW$35,1)<11,(11-RANK(AW26,AW$6:AW$35,1))*0.5,0)) -> - | BA26: =IF(AZ26="","-",IF(RANK(AZ26,AZ$6:AZ$35,1)<11,(11-RANK(AZ26,AZ$6:AZ$35,1))*0.5,0)) -> - | BD26: =IF(BC26="","-",IF(RANK(BC26,BC$6:BC$35,1)<11,(11-RANK(BC26,BC$6:BC$35,1))*0.5,0)) -> - | BG26: =IF(BF26="","-",IF(RANK(BF26,BF$6:BF$35,1)<11,(11-RANK(BF26,BF$6:BF$35,1))*0.5,0)) -> - | BJ26: =IF(BI26="","-",IF(RANK(BI26,BI$6:BI$35,1)<11,(11-RANK(BI26,BI$6:BI$35,1))*0.5,0)) -> - | BM26: =IF(BL26="","-",IF(RANK(BL26,BL$6:BL$35,1)<11,(11-RANK(BL26,BL$6:BL$35,1))*0.5,0)) -> - | BP26: =IF(BO26="","-",IF(RANK(BO26,BO$6:BO$35,1)<11,(11-RANK(BO26,BO$6:BO$35,1))*0.5,0)) -> - | BS26: =IF(BR26="","-",IF(RANK(BR26,BR$6:BR$35,1)<11,(11-RANK(BR26,BR$6:BR$35,1))*0.5,0)) -> - | BV26: =IF(BU26="","-",IF(RANK(BU26,BU$6:BU$35,1)<11,(11-RANK(BU26,BU$6:BU$35,1))*0.5,0)) -> - | BY26: =IF(BX26="","-",IF(RANK(BX26,BX$6:BX$35,1)<11,(11-RANK(BX26,BX$6:BX$35,1))*0.5,0)) -> - | CB26: =IF(CA26="","-",IF(RANK(CA26,CA$6:CA$35,1)<11,(11-RANK(CA26,CA$6:CA$35,1))*0.5,0)) -> - | CE26: =IF(CD26="","-",IF(RANK(CD26,CD$6:CD$35,1)<11,(11-RANK(CD26,CD$6:CD$35,1))*0.5,0)) -> - | CH26: =IF(CG26="","-",IF(RANK(CG26,CG$6:CG$35,1)<11,(11-RANK(CG26,CG$6:CG$35,1))*0.5,0)) -> - | CK26: =IF(CJ26="","-",IF(RANK(CJ26,CJ$6:CJ$35,1)<11,(11-RANK(CJ26,CJ$6:CJ$35,1))*0.5,0)) -> -
C27: - | D27: - | E27: - | F27: - | G27: - | H27: - | K27: - | N27: - | Q27: - | T27: - | W27: - | Z27: - | AC27: - | AF27: - | AI27: - | AL27: - | AO27: - | AR27: - | AU27: - | AX27: - | BA27: - | BD27: - | BG27: - | BJ27: - | BM27: - | BP27: - | BS27: - | BV27: - | BY27: - | CB27: - | CE27: - | CH27: - | CK27: -
C28: - | D28: - | E28: - | F28: - | G28: - | H28: - | K28: - | N28: - | Q28: - | T28: - | W28: - | Z28: - | AC28: - | AF28: - | AI28: - | AL28: - | AO28: - | AR28: - | AU28: - | AX28: - | BA28: - | BD28: - | BG28: - | BJ28: - | BM28: - | BP28: - | BS28: - | BV28: - | BY28: - | CB28: - | CE28: - | CH28: - | CK28: -
C29: - | D29: - | E29: - | F29: - | G29: - | H29: - | K29: - | N29: - | Q29: - | T29: - | W29: - | Z29: - | AC29: - | AF29: - | AI29: - | AL29: - | AO29: - | AR29: - | AU29: - | AX29: - | BA29: - | BD29: - | BG29: - | BJ29: - | BM29: - | BP29: - | BS29: - | BV29: - | BY29: - | CB29: - | CE29: - | CH29: - | CK29: -
C30: - | D30: - | E30: - | F30: - | G30: - | H30: - | K30: - | N30: - | Q30: - | T30: - | W30: - | Z30: - | AC30: - | AF30: - | AI30: - | AL30: - | AO30: - | AR30: - | AU30: - | AX30: - | BA30: - | BD30: - | BG30: - | BJ30: - | BM30: - | BP30: - | BS30: - | BV30: - | BY30: - | CB30: - | CE30: - | CH30: - | CK30: -
C31: =IF(B31=" ","- ",D31+E31) -> - | D31: =IF(B31=" ","- ",SUM(I31*$K$4,L31*$N$4,O31*$Q$4,R31*$T$4,U31*$W$4,X31*$Z$4,AA31*$AC$4,AD31*$AF$4,AG31*$AI$4,AJ31*$AL$4,AM31*$AO$4,AP31*$AR$4,AS31*$AU$4,AV31*$AX$4,AY31*$BA$4,BB31*$BD$4,BE31*$BG$4,BH31*$BJ$4,BK31*$BM$4,BN31*$BP$4,BQ31*$BS$4,BT31*$BV$4,BW31*$BY$4,BZ31*$CB$4,CC31*$CE$4,CF31*$CH$4,CI31*$CK$4)) -> - | E31: =IF(B31=" ","- ",SUM(K31,N31,Q31,T31,W31,Z31,AC31,AF31,AI31,AL31,AO31,AR31,AU31,AX31,BA31,BD31,BG31,BJ31,BM31,BP31,BS31,BV31,BY31,CB31,CE31,CH31,CK31)) -> - | F31: =IF(B31=" ","- ",SUM(I31*$I$4,L31*$L$4,O31*$O$4,R31*$R$4,U31*$U$4,X31*$X$4,AA31*$AA$4,AD31*$AD$4,AG31*$AG$4,AJ31*$AJ$4,AM31*$AM$4,AP31*$AP$4,AS31*$AS$4,AV31*$AV$4,AY31*$AY$4,BB31*$BB$4,BE31*$BE$4,BH31*$BH$4,BK31*$BK$4,BN31*$BN$4,BQ31*$BQ$4,BT31*$BT$4,BW31*$BW$4,BZ31*$BZ$4,CC31*$CC$4,CF31*$CF$4,CI31*$CI$4)) -> - | G31: =IF(B31=" ","- ",SUM(I31,L31,O31,R31,U31,X31,AA31,AD31,AG31,AJ31,AM31,AP31,AS31,AV31,AY31,BB31,BE31,BH31,BK31,BN31,BQ31,BT31,BW31,BZ31,CC31,CF31,CI31)) -> - | H31: =IF(B31=" ","- ",COUNT(I31,L31,O31,R31,U31,X31,AA31,AD31,AG31,AJ31,AM31,AP31,AS31,AV31,AY31,BB31,BE31,BH31,BK31,BN31,BQ31,BT31,BW31,BZ31,CC31,CF31,CI31)) -> - | K31: =IF(J31="","-",IF(RANK(J31,J$6:J$35,1)<11,(11-RANK(J31,J$6:J$35,1))*0.5,0)) -> - | N31: =IF(M31="","-",IF(RANK(M31,M$6:M$35,1)<11,(11-RANK(M31,M$6:M$35,1))*0.5,0)) -> - | Q31: =IF(P31="","-",IF(RANK(P31,P$6:P$35,1)<11,(11-RANK(P31,P$6:P$35,1))*0.5,0)) -> - | T31: =IF(S31="","-",IF(RANK(S31,S$6:S$35,1)<11,(11-RANK(S31,S$6:S$35,1))*0.5,0)) -> - | W31: =IF(V31="","-",IF(RANK(V31,V$6:V$35,1)<11,(11-RANK(V31,V$6:V$35,1))*0.5,0)) -> - | Z31: =IF(Y31="","-",IF(RANK(Y31,Y$6:Y$35,1)<11,(11-RANK(Y31,Y$6:Y$35,1))*0.5,0)) -> - | AC31: =IF(AB31="","-",IF(RANK(AB31,AB$6:AB$35,1)<11,(11-RANK(AB31,AB$6:AB$35,1))*0.5,0)) -> - | AF31: =IF(AE31="","-",IF(RANK(AE31,AE$6:AE$35,1)<11,(11-RANK(AE31,AE$6:AE$35,1))*0.5,0)) -> - | AI31: =IF(AH31="","-",IF(RANK(AH31,AH$6:AH$35,1)<11,(11-RANK(AH31,AH$6:AH$35,1))*0.5,0)) -> - | AL31: =IF(AK31="","-",IF(RANK(AK31,AK$6:AK$35,1)<11,(11-RANK(AK31,AK$6:AK$35,1))*0.5,0)) -> - | AO31: =IF(AN31="","-",IF(RANK(AN31,AN$6:AN$35,1)<11,(11-RANK(AN31,AN$6:AN$35,1))*0.5,0)) -> - | AR31: =IF(AQ31="","-",IF(RANK(AQ31,AQ$6:AQ$35,1)<11,(11-RANK(AQ31,AQ$6:AQ$35,1))*0.5,0)) -> - | AU31: =IF(AT31="","-",IF(RANK(AT31,AT$6:AT$35,1)<11,(11-RANK(AT31,AT$6:AT$35,1))*0.5,0)) -> - | AX31: =IF(AW31="","-",IF(RANK(AW31,AW$6:AW$35,1)<11,(11-RANK(AW31,AW$6:AW$35,1))*0.5,0)) -> - | BA31: =IF(AZ31="","-",IF(RANK(AZ31,AZ$6:AZ$35,1)<11,(11-RANK(AZ31,AZ$6:AZ$35,1))*0.5,0)) -> - | BD31: =IF(BC31="","-",IF(RANK(BC31,BC$6:BC$35,1)<11,(11-RANK(BC31,BC$6:BC$35,1))*0.5,0)) -> - | BG31: =IF(BF31="","-",IF(RANK(BF31,BF$6:BF$35,1)<11,(11-RANK(BF31,BF$6:BF$35,1))*0.5,0)) -> - | BJ31: =IF(BI31="","-",IF(RANK(BI31,BI$6:BI$35,1)<11,(11-RANK(BI31,BI$6:BI$35,1))*0.5,0)) -> - | BM31: =IF(BL31="","-",IF(RANK(BL31,BL$6:BL$35,1)<11,(11-RANK(BL31,BL$6:BL$35,1))*0.5,0)) -> - | BP31: =IF(BO31="","-",IF(RANK(BO31,BO$6:BO$35,1)<11,(11-RANK(BO31,BO$6:BO$35,1))*0.5,0)) -> - | BS31: =IF(BR31="","-",IF(RANK(BR31,BR$6:BR$35,1)<11,(11-RANK(BR31,BR$6:BR$35,1))*0.5,0)) -> - | BV31: =IF(BU31="","-",IF(RANK(BU31,BU$6:BU$35,1)<11,(11-RANK(BU31,BU$6:BU$35,1))*0.5,0)) -> - | BY31: =IF(BX31="","-",IF(RANK(BX31,BX$6:BX$35,1)<11,(11-RANK(BX31,BX$6:BX$35,1))*0.5,0)) -> - | CB31: =IF(CA31="","-",IF(RANK(CA31,CA$6:CA$35,1)<11,(11-RANK(CA31,CA$6:CA$35,1))*0.5,0)) -> - | CE31: =IF(CD31="","-",IF(RANK(CD31,CD$6:CD$35,1)<11,(11-RANK(CD31,CD$6:CD$35,1))*0.5,0)) -> - | CH31: =IF(CG31="","-",IF(RANK(CG31,CG$6:CG$35,1)<11,(11-RANK(CG31,CG$6:CG$35,1))*0.5,0)) -> - | CK31: =IF(CJ31="","-",IF(RANK(CJ31,CJ$6:CJ$35,1)<11,(11-RANK(CJ31,CJ$6:CJ$35,1))*0.5,0)) -> -
C32: - | D32: - | E32: - | F32: - | G32: - | H32: - | K32: - | N32: - | Q32: - | T32: - | W32: - | Z32: - | AC32: - | AF32: - | AI32: - | AL32: - | AO32: - | AR32: - | AU32: - | AX32: - | BA32: - | BD32: - | BG32: - | BJ32: - | BM32: - | BP32: - | BS32: - | BV32: - | BY32: - | CB32: - | CE32: - | CH32: - | CK32: -
C33: - | D33: - | E33: - | F33: - | G33: - | H33: - | K33: - | N33: - | Q33: - | T33: - | W33: - | Z33: - | AC33: - | AF33: - | AI33: - | AL33: - | AO33: - | AR33: - | AU33: - | AX33: - | BA33: - | BD33: - | BG33: - | BJ33: - | BM33: - | BP33: - | BS33: - | BV33: - | BY33: - | CB33: - | CE33: - | CH33: - | CK33: -
C34: - | D34: - | E34: - | F34: - | G34: - | H34: - | K34: - | N34: - | Q34: - | T34: - | W34: - | Z34: - | AC34: - | AF34: - | AI34: - | AL34: - | AO34: - | AR34: - | AU34: - | AX34: - | BA34: - | BD34: - | BG34: - | BJ34: - | BM34: - | BP34: - | BS34: - | BV34: - | BY34: - | CB34: - | CE34: - | CH34: - | CK34: -
C35: - | D35: - | E35: - | F35: - | G35: - | H35: - | K35: - | N35: - | Q35: - | T35: - | W35: - | Z35: - | AC35: - | AF35: - | AI35: - | AL35: - | AO35: - | AR35: - | AU35: - | AX35: - | BA35: - | BD35: - | BG35: - | BJ35: - | BM35: - | BP35: - | BS35: - | BV35: - | BY35: - | CB35: - | CE35: - | CH35: - | CK35: -
B36: Celkem | C36: =SUM(C6:C35) -> 1091 | D36: 524.5 | E36: 566.5 | F36: 5429.5 | G36: 262 | H36: 164 | I36: 25 | J36: =MIN(J6:J35) -> 00:29:45 | L36: =SUM(L6:L35) -> 22 | M36: =MIN(M6:M35) -> 00:22:44 | O36: =SUM(O6:O35) -> 33 | P36: =MIN(P6:P35) -> 00:28:05 | R36: =SUM(R6:R35) -> 4 | S36: =MIN(S6:S35) -> 01:01:15 | U36: =SUM(U6:U35) -> 7 | V36: =MIN(V6:V35) -> 01:32:05 | X36: =SUM(X6:X35) -> 5 | Y36: =MIN(Y6:Y35) -> 00:42:31 | AA36: =SUM(AA6:AA35) -> 24 | AB36: =MIN(AB6:AB35) -> 00:42:20 | AD36: =SUM(AD6:AD35) -> 5 | AE36: =MIN(AE6:AE35) -> 01:13:27 | AG36: =SUM(AG6:AG35) -> 5 | AH36: =MIN(AH6:AH35) -> 01:43:30 | AJ36: =SUM(AJ6:AJ35) -> 4 | AK36: =MIN(AK6:AK35) -> 01:17:22 | AM36: =SUM(AM6:AM35) -> 6 | AN36: =MIN(AN6:AN35) -> 02:19:31 | AP36: =SUM(AP6:AP35) -> 7 | AQ36: =MIN(AQ6:AQ35) -> 01:25:35 | AS36: =SUM(AS6:AS35) -> 9 | AT36: =MIN(AT6:AT35) -> 00:42:42 | AV36: =SUM(AV6:AV35) -> 10 | AW36: =MIN(AW6:AW35) -> 00:42:14 | AY36: =SUM(AY6:AY35) -> 7 | AZ36: =MIN(AZ6:AZ35) -> 00:55:55 | BB36: =SUM(BB6:BB35) -> 12 | BC36: =MIN(BC6:BC35) -> 00:52:18 | BE36: =SUM(BE6:BE35) -> 6 | BF36: =MIN(BF6:BF35) -> 01:13:50 | BH36: =SUM(BH6:BH35) -> 10 | BI36: =MIN(BI6:BI35) -> 01:16:54 | BK36: =SUM(BK6:BK35) -> 7 | BL36: =MIN(BL6:BL35) -> 00:54:45 | BN36: =SUM(BN6:BN35) -> 13 | BO36: =MIN(BO6:BO35) -> 01:24:00 | BQ36: =SUM(BQ6:BQ35) -> 6 | BR36: =MIN(BR6:BR35) -> 01:16:07 | BT36: =SUM(BT6:BT35) -> 12 | BU36: =MIN(BU6:BU35) -> 00:30:18 | BW36: =SUM(BW6:BW35) -> 4 | BX36: =MIN(BX6:BX35) -> 01:05:55 | BZ36: =SUM(BZ6:BZ35) -> 8 | CA36: =MIN(CA6:CA35) -> 01:53:00 | CC36: =SUM(CC6:CC35) -> 4 | CD36: =MIN(CD6:CD35) -> 02:22:30 | CF36: =SUM(CF6:CF35) -> 7 | CG36: =MIN(CG6:CG35) -> 00:44:35 | CI36: =SUM(CI6:CI35) -> 0 | CJ36: =MIN(CJ6:CJ35) -> 00:00:00
B37: Průměr | C37: =IF(SUM(C6:C35)=0,0,AVERAGE(C6:C35)) -> 54.55 | D37: 26.225 | E37: 28.325 | F37: 271.475 | G37: 13.1 | H37: 8.2 | I37: =COUNT(I6:I35) -> 9 | J37: =IF(SUM(J6:J35)=0,0,AVERAGE(J6:J35)) -> 00:40:41 | L37: =COUNT(L6:L35) -> 12 | M37: =IF(SUM(M6:M35)=0,0,AVERAGE(M6:M35)) -> 00:32:37.917 | O37: =COUNT(O6:O35) -> 15 | P37: =IF(SUM(P6:P35)=0,0,AVERAGE(P6:P35)) -> 00:37:35.200 | R37: =COUNT(R6:R35) -> 4 | S37: =IF(SUM(S6:S35)=0,0,AVERAGE(S6:S35)) -> 01:15:32.500 | U37: =COUNT(U6:U35) -> 7 | V37: =IF(SUM(V6:V35)=0,0,AVERAGE(V6:V35)) -> 01:54:21.286 | X37: =COUNT(X6:X35) -> 4 | Y37: =IF(SUM(Y6:Y35)=0,0,AVERAGE(Y6:Y35)) -> 00:51:39 | AA37: =COUNT(AA6:AA35) -> 6 | AB37: =IF(SUM(AB6:AB35)=0,0,AVERAGE(AB6:AB35)) -> 00:49:42.333 | AD37: =COUNT(AD6:AD35) -> 4 | AE37: =IF(SUM(AE6:AE35)=0,0,AVERAGE(AE6:AE35)) -> 01:26:32.750 | AG37: =COUNT(AG6:AG35) -> 5 | AH37: =IF(SUM(AH6:AH35)=0,0,AVERAGE(AH6:AH35)) -> 02:03:40.800 | AJ37: =COUNT(AJ6:AJ35) -> 4 | AK37: =IF(SUM(AK6:AK35)=0,0,AVERAGE(AK6:AK35)) -> 01:32:22.500 | AM37: =COUNT(AM6:AM35) -> 6 | AN37: =IF(SUM(AN6:AN35)=0,0,AVERAGE(AN6:AN35)) -> 03:38:04.667 | AP37: =COUNT(AP6:AP35) -> 7 | AQ37: =IF(SUM(AQ6:AQ35)=0,0,AVERAGE(AQ6:AQ35)) -> 01:45:32.143 | AS37: =COUNT(AS6:AS35) -> 6 | AT37: =IF(SUM(AT6:AT35)=0,0,AVERAGE(AT6:AT35)) -> 00:52:39.167 | AV37: =COUNT(AV6:AV35) -> 8 | AW37: =IF(SUM(AW6:AW35)=0,0,AVERAGE(AW6:AW35)) -> 00:59:00.375 | AY37: =COUNT(AY6:AY35) -> 6 | AZ37: =IF(SUM(AZ6:AZ35)=0,0,AVERAGE(AZ6:AZ35)) -> 01:11:14.500 | BB37: =COUNT(BB6:BB35) -> 6 | BC37: =IF(SUM(BC6:BC35)=0,0,AVERAGE(BC6:BC35)) -> 01:08:24.167 | BE37: =COUNT(BE6:BE35) -> 4 | BF37: =IF(SUM(BF6:BF35)=0,0,AVERAGE(BF6:BF35)) -> 01:29:53.250 | BH37: =COUNT(BH6:BH35) -> 6 | BI37: =IF(SUM(BI6:BI35)=0,0,AVERAGE(BI6:BI35)) -> 01:38:56.667 | BK37: =COUNT(BK6:BK35) -> 5 | BL37: =IF(SUM(BL6:BL35)=0,0,AVERAGE(BL6:BL35)) -> 01:14:51.200 | BN37: =COUNT(BN6:BN35) -> 9 | BO37: =IF(SUM(BO6:BO35)=0,0,AVERAGE(BO6:BO35)) -> 01:40:08.667 | BQ37: =COUNT(BQ6:BQ35) -> 4 | BR37: =IF(SUM(BR6:BR35)=0,0,AVERAGE(BR6:BR35)) -> 01:29:38.750 | BT37: =COUNT(BT6:BT35) -> 6 | BU37: =IF(SUM(BU6:BU35)=0,0,AVERAGE(BU6:BU35)) -> 00:40:43 | BW37: =COUNT(BW6:BW35) -> 4 | BX37: =IF(SUM(BX6:BX35)=0,0,AVERAGE(BX6:BX35)) -> 01:16:16.750 | BZ37: =COUNT(BZ6:BZ35) -> 7 | CA37: =IF(SUM(CA6:CA35)=0,0,AVERAGE(CA6:CA35)) -> 02:13:19.714 | CC37: =COUNT(CC6:CC35) -> 4 | CD37: =IF(SUM(CD6:CD35)=0,0,AVERAGE(CD6:CD35)) -> 02:46:48.250 | CF37: =COUNT(CF6:CF35) -> 6 | CG37: =IF(SUM(CG6:CG35)=0,0,AVERAGE(CG6:CG35)) -> 00:58:12.667 | CI37: =COUNT(CI6:CI35) -> 0 | CJ37: =IF(SUM(CJ6:CJ35)=0,0,AVERAGE(CJ6:CJ35)) -> 00:00:00
F38: profil (stoupání/klesání) | I38: +300 m / –250 m | L38: +300 m / –100 m | O38: +90 m / –180 m | R38: +500 m / –500 m | U38: +720 m / –510 m | X38: +570 m / –30 m | AA38: +300 m / –290 m | AD38: +890 m / –40 m | AG38: +1170 m / –200 m | AJ38: +970 m / –390 m | AM38: +985 m / –985 m | AP38: +650 m / –650 m | AS38: +440 m / –400 m | AV38: +340 m / –320 m | AY38: +680 m / –350 m | BB38: +520 m / –520 m | BE38: +780 m / –780 m | BH38: +650 m / –650 m | BK38: +510 m / –510 m | BN38: +460 m / –510 m | BQ38: +665 m / –480 m | BT38: +310 m / –270 m | BW38: +800 m / –330 m | BZ38: +770 m / –770 m | CC38: +1090 m / –1090 m | CF38: +220 m / –220 m
I39: 1 | N39: 1
N41: 548.5
AD44: 2017-04-14
